{"text_format":"1","workbook":"xlsx","n_sheets":2,"sheets":["Obrazec preveritev in poročanje","Kode"],"not_rendered":{"charts":0,"images":0,"macros":1,"external_links":0,"defined_names":0,"comments":1,"pivot_tables":0},"unopened":[],"bounds":{"document_bytes":16777216,"sheet_cells":100000,"rows_first":2000,"rows_last":500,"rows_between":2000,"halvings":0,"cell_chars":16384,"cell_head_chars":4096},"cells_cut":0,"cells_raw":0,"read":"whole","date_system":"1900"}

{"sheet":"Obrazec preveritev in poročanje","index":0,"n_rows":205,"n_cols":24,"rows_kept":205,"cut":false,"hidden":false,"merged":[]}
["Naziv dajalca pomoči","Matična številka dajalca pomoči","Številka priglasitve","Naziv sheme pomoči de minimis ali individualne ad hoc pomoči de minimis","Matična številka prejemnika","Ime in priimek prejemnika ali naziv pravne osebe, ki je prejela pomoč","Davčna št.  prejemnika","KMG-MID-številka prejemnika","Naslov prejemnika (ime ulice in hišna številka, poštna številka in naziv pošte)","Šifra občine prejemnika","Datum odobritve pomoči","Datum nakazila pomoči prejemniku","Šifra instrumenta pomoči","Šifra namena pomoči","Opis ukrepa","Naložba\n(da/ne)","Vrednost celotne naložbe (EUR)","Pravna podlaga za odobritev pomoči","Pravni akt","Znesek upravičenih stroškov (EUR)","Bruto znesek pomoči \n(EUR)","Neto znesek \npomoči (EUR)","Število udeležencev","Stopnja intenzivnosti pomoči (%)"]
[{"$f":"VLOOKUP(C2,Kode!A2:C219,2,FALSE)","v":{"$error":"#N/A"}},{"$f":"VLOOKUP(C2,Kode!A2:C219,3,FALSE)","v":{"$error":"#N/A"}},null,{"$f":"VLOOKUP(C2,Kode!A2:D219,4,FALSE)","v":{"$error":"#N/A"}},null,null,null,null,null,null,null,null,null,null,null,null,null,{"$f":"VLOOKUP(C2,Kode!A2:E219,5,FALSE)","v":{"$error":"#N/A"}},null,null,null,null,null,{"$f":"V2/T2*100","v":{"$error":"#DIV/0!"}}]
[{"$f":"VLOOKUP(C3,Kode!A2:C219,2,FALSE)","v":{"$error":"#N/A"}},{"$f":"VLOOKUP(C3,Kode!A2:C219,3,FALSE)","v":{"$error":"#N/A"}},null,{"$f":"VLOOKUP(C3,Kode!A2:D219,4,FALSE)","v":{"$error":"#N/A"}},null,null,null,null,null,null,null,null,null,null,null,null,null,{"$f":"VLOOKUP(C3,Kode!A2:E219,5,FALSE)","v":{"$error":"#N/A"}},null,null,null,null,null,{"$f":"V3/T3*100","v":{"$error":"#DIV/0!"}}]
[{"$f":"VLOOKUP(C4,Kode!A2:C219,2,FALSE)","v":{"$error":"#N/A"}},{"$f":"VLOOKUP(C4,Kode!A2:C219,3,FALSE)","v":{"$error":"#N/A"}},null,{"$f":"VLOOKUP(C4,Kode!A2:D219,4,FALSE)","v":{"$error":"#N/A"}},null,null,null,null,null,null,null,null,null,null,null,null,null,{"$f":"VLOOKUP(C4,Kode!A2:E219,5,FALSE)","v":{"$error":"#N/A"}},null,null,null,null,null,{"$error":"#DIV/0!"}]
[{"$f":"VLOOKUP(C5,Kode!A2:C219,2,FALSE)","v":{"$error":"#N/A"}},{"$f":"VLOOKUP(C5,Kode!A2:C219,3,FALSE)","v":{"$error":"#N/A"}},null,{"$f":"VLOOKUP(C5,Kode!A2:D219,4,FALSE)","v":{"$error":"#N/A"}},null,null,null,null,null,null,null,null,null,null,null,null,null,{"$f":"VLOOKUP(C5,Kode!A2:E219,5,FALSE)","v":{"$error":"#N/A"}},null,null,null,null,null,{"$error":"#DIV/0!"}]
[{"$f":"VLOOKUP(C6,Kode!A2:C219,2,FALSE)","v":{"$error":"#N/A"}},{"$f":"VLOOKUP(C6,Kode!A2:C219,3,FALSE)","v":{"$error":"#N/A"}},null,{"$f":"VLOOKUP(C6,Kode!A2:D219,4,FALSE)","v":{"$error":"#N/A"}},null,null,null,null,null,null,null,null,null,null,null,null,null,{"$f":"VLOOKUP(C6,Kode!A2:E219,5,FALSE)","v":{"$error":"#N/A"}},null,null,null,null,null,{"$error":"#DIV/0!"}]
[{"$f":"VLOOKUP(C7,Kode!A2:C219,2,FALSE)","v":{"$error":"#N/A"}},{"$f":"VLOOKUP(C7,Kode!A2:C219,3,FALSE)","v":{"$error":"#N/A"}},null,{"$f":"VLOOKUP(C7,Kode!A2:D219,4,FALSE)","v":{"$error":"#N/A"}},null,null,null,null,null,null,null,null,null,null,null,null,null,{"$f":"VLOOKUP(C7,Kode!A2:E219,5,FALSE)","v":{"$error":"#N/A"}},null,null,null,null,null,{"$error":"#DIV/0!"}]
[{"$f":"VLOOKUP(C8,Kode!A2:C219,2,FALSE)","v":{"$error":"#N/A"}},{"$f":"VLOOKUP(C8,Kode!A2:C219,3,FALSE)","v":{"$error":"#N/A"}},null,{"$f":"VLOOKUP(C8,Kode!A2:D219,4,FALSE)","v":{"$error":"#N/A"}},null,null,null,null,null,null,null,null,null,null,null,null,null,{"$f":"VLOOKUP(C8,Kode!A2:E219,5,FALSE)","v":{"$error":"#N/A"}},null,null,null,null,null,{"$error":"#DIV/0!"}]
[{"$f":"VLOOKUP(C9,Kode!A2:C219,2,FALSE)","v":{"$error":"#N/A"}},{"$f":"VLOOKUP(C9,Kode!A2:C219,3,FALSE)","v":{"$error":"#N/A"}},null,{"$f":"VLOOKUP(C9,Kode!A2:D219,4,FALSE)","v":{"$error":"#N/A"}},null,null,null,null,null,null,null,null,null,null,null,null,null,{"$f":"VLOOKUP(C9,Kode!A2:E219,5,FALSE)","v":{"$error":"#N/A"}},null,null,null,null,null,{"$error":"#DIV/0!"}]
[{"$f":"VLOOKUP(C10,Kode!A2:C219,2,FALSE)","v":{"$error":"#N/A"}},{"$f":"VLOOKUP(C10,Kode!A2:C219,3,FALSE)","v":{"$error":"#N/A"}},null,{"$f":"VLOOKUP(C10,Kode!A2:D219,4,FALSE)","v":{"$error":"#N/A"}},null,null,null,null,null,null,null,null,null,null,null,null,null,{"$f":"VLOOKUP(C10,Kode!A2:E219,5,FALSE)","v":{"$error":"#N/A"}},null,null,null,null,null,{"$error":"#DIV/0!"}]
[{"$f":"VLOOKUP(C11,Kode!A2:C219,2,FALSE)","v":{"$error":"#N/A"}},{"$f":"VLOOKUP(C11,Kode!A2:C219,3,FALSE)","v":{"$error":"#N/A"}},null,{"$f":"VLOOKUP(C11,Kode!A2:D219,4,FALSE)","v":{"$error":"#N/A"}},null,null,null,null,null,null,null,null,null,null,null,null,null,{"$f":"VLOOKUP(C11,Kode!A2:E219,5,FALSE)","v":{"$error":"#N/A"}},null,null,null,null,null,{"$error":"#DIV/0!"}]
[{"$f":"VLOOKUP(C12,Kode!A2:C219,2,FALSE)","v":{"$error":"#N/A"}},{"$f":"VLOOKUP(C12,Kode!A2:C219,3,FALSE)","v":{"$error":"#N/A"}},null,{"$f":"VLOOKUP(C12,Kode!A2:D219,4,FALSE)","v":{"$error":"#N/A"}},null,null,null,null,null,null,null,null,null,null,null,null,null,{"$f":"VLOOKUP(C12,Kode!A2:E219,5,FALSE)","v":{"$error":"#N/A"}},null,null,null,null,null,{"$error":"#DIV/0!"}]
[{"$f":"VLOOKUP(C13,Kode!A2:C219,2,FALSE)","v":{"$error":"#N/A"}},{"$f":"VLOOKUP(C13,Kode!A2:C219,3,FALSE)","v":{"$error":"#N/A"}},null,{"$f":"VLOOKUP(C13,Kode!A2:D219,4,FALSE)","v":{"$error":"#N/A"}},null,null,null,null,null,null,null,null,null,null,null,null,null,{"$f":"VLOOKUP(C13,Kode!A2:E219,5,FALSE)","v":{"$error":"#N/A"}},null,null,null,null,null,{"$error":"#DIV/0!"}]
[{"$f":"VLOOKUP(C14,Kode!A2:C219,2,FALSE)","v":{"$error":"#N/A"}},{"$f":"VLOOKUP(C14,Kode!A2:C219,3,FALSE)","v":{"$error":"#N/A"}},null,{"$f":"VLOOKUP(C14,Kode!A2:D219,4,FALSE)","v":{"$error":"#N/A"}},null,null,null,null,null,null,null,null,null,null,null,null,null,{"$f":"VLOOKUP(C14,Kode!A2:E219,5,FALSE)","v":{"$error":"#N/A"}},null,null,null,null,null,{"$error":"#DIV/0!"}]
[{"$f":"VLOOKUP(C15,Kode!A2:C219,2,FALSE)","v":{"$error":"#N/A"}},{"$f":"VLOOKUP(C15,Kode!A2:C219,3,FALSE)","v":{"$error":"#N/A"}},null,{"$f":"VLOOKUP(C15,Kode!A2:D219,4,FALSE)","v":{"$error":"#N/A"}},null,null,null,null,null,null,null,null,null,null,null,null,null,{"$f":"VLOOKUP(C15,Kode!A2:E219,5,FALSE)","v":{"$error":"#N/A"}},null,null,null,null,null,{"$error":"#DIV/0!"}]
[{"$f":"VLOOKUP(C16,Kode!A2:C219,2,FALSE)","v":{"$error":"#N/A"}},{"$f":"VLOOKUP(C16,Kode!A2:C219,3,FALSE)","v":{"$error":"#N/A"}},null,{"$f":"VLOOKUP(C16,Kode!A2:D219,4,FALSE)","v":{"$error":"#N/A"}},null,null,null,null,null,null,null,null,null,null,null,null,null,{"$f":"VLOOKUP(C16,Kode!A2:E219,5,FALSE)","v":{"$error":"#N/A"}},null,null,null,null,null,{"$error":"#DIV/0!"}]
[{"$f":"VLOOKUP(C17,Kode!A2:C219,2,FALSE)","v":{"$error":"#N/A"}},{"$f":"VLOOKUP(C17,Kode!A2:C219,3,FALSE)","v":{"$error":"#N/A"}},null,{"$f":"VLOOKUP(C17,Kode!A2:D219,4,FALSE)","v":{"$error":"#N/A"}},null,null,null,null,null,null,null,null,null,null,null,null,null,{"$f":"VLOOKUP(C17,Kode!A2:E219,5,FALSE)","v":{"$error":"#N/A"}},null,null,null,null,null,{"$error":"#DIV/0!"}]
[{"$f":"VLOOKUP(C18,Kode!A2:C219,2,FALSE)","v":{"$error":"#N/A"}},{"$f":"VLOOKUP(C18,Kode!A2:C219,3,FALSE)","v":{"$error":"#N/A"}},null,{"$f":"VLOOKUP(C18,Kode!A2:D219,4,FALSE)","v":{"$error":"#N/A"}},null,null,null,null,null,null,null,null,null,null,null,null,null,{"$f":"VLOOKUP(C18,Kode!A2:E219,5,FALSE)","v":{"$error":"#N/A"}},null,null,null,null,null,{"$error":"#DIV/0!"}]
[{"$f":"VLOOKUP(C19,Kode!A2:C219,2,FALSE)","v":{"$error":"#N/A"}},{"$f":"VLOOKUP(C19,Kode!A2:C219,3,FALSE)","v":{"$error":"#N/A"}},null,{"$f":"VLOOKUP(C19,Kode!A2:D219,4,FALSE)","v":{"$error":"#N/A"}},null,null,null,null,null,null,null,null,null,null,null,null,null,{"$f":"VLOOKUP(C19,Kode!A2:E219,5,FALSE)","v":{"$error":"#N/A"}},null,null,null,null,null,{"$error":"#DIV/0!"}]
[{"$f":"VLOOKUP(C20,Kode!A2:C219,2,FALSE)","v":{"$error":"#N/A"}},{"$f":"VLOOKUP(C20,Kode!A2:C219,3,FALSE)","v":{"$error":"#N/A"}},null,{"$f":"VLOOKUP(C20,Kode!A2:D219,4,FALSE)","v":{"$error":"#N/A"}},null,null,null,null,null,null,null,null,null,null,null,null,null,{"$f":"VLOOKUP(C20,Kode!A2:E219,5,FALSE)","v":{"$error":"#N/A"}},null,null,null,null,null,{"$error":"#DIV/0!"}]
[{"$f":"VLOOKUP(C21,Kode!A2:C219,2,FALSE)","v":{"$error":"#N/A"}},{"$f":"VLOOKUP(C21,Kode!A2:C219,3,FALSE)","v":{"$error":"#N/A"}},null,{"$f":"VLOOKUP(C21,Kode!A2:D219,4,FALSE)","v":{"$error":"#N/A"}},null,null,null,null,null,null,null,null,null,null,null,null,null,{"$f":"VLOOKUP(C21,Kode!A2:E219,5,FALSE)","v":{"$error":"#N/A"}},null,null,null,null,null,{"$error":"#DIV/0!"}]
[{"$f":"VLOOKUP(C22,Kode!A2:C219,2,FALSE)","v":{"$error":"#N/A"}},{"$f":"VLOOKUP(C22,Kode!A2:C219,3,FALSE)","v":{"$error":"#N/A"}},null,{"$f":"VLOOKUP(C22,Kode!A2:D219,4,FALSE)","v":{"$error":"#N/A"}},null,null,null,null,null,null,null,null,null,null,null,null,null,{"$f":"VLOOKUP(C22,Kode!A2:E219,5,FALSE)","v":{"$error":"#N/A"}},null,null,null,null,null,{"$error":"#DIV/0!"}]
[{"$f":"VLOOKUP(C23,Kode!A2:C219,2,FALSE)","v":{"$error":"#N/A"}},{"$f":"VLOOKUP(C23,Kode!A2:C219,3,FALSE)","v":{"$error":"#N/A"}},null,{"$f":"VLOOKUP(C23,Kode!A2:D219,4,FALSE)","v":{"$error":"#N/A"}},null,null,null,null,null,null,null,null,null,null,null,null,null,{"$f":"VLOOKUP(C23,Kode!A2:E219,5,FALSE)","v":{"$error":"#N/A"}},null,null,null,null,null,{"$error":"#DIV/0!"}]
[{"$f":"VLOOKUP(C24,Kode!A2:C219,2,FALSE)","v":{"$error":"#N/A"}},{"$f":"VLOOKUP(C24,Kode!A2:C219,3,FALSE)","v":{"$error":"#N/A"}},null,{"$f":"VLOOKUP(C24,Kode!A2:D219,4,FALSE)","v":{"$error":"#N/A"}},null,null,null,null,null,null,null,null,null,null,null,null,null,{"$f":"VLOOKUP(C24,Kode!A2:E219,5,FALSE)","v":{"$error":"#N/A"}},null,null,null,null,null,{"$error":"#DIV/0!"}]
[{"$f":"VLOOKUP(C25,Kode!A2:C219,2,FALSE)","v":{"$error":"#N/A"}},{"$f":"VLOOKUP(C25,Kode!A2:C219,3,FALSE)","v":{"$error":"#N/A"}},null,{"$f":"VLOOKUP(C25,Kode!A2:D219,4,FALSE)","v":{"$error":"#N/A"}},null,null,null,null,null,null,null,null,null,null,null,null,null,{"$f":"VLOOKUP(C25,Kode!A2:E219,5,FALSE)","v":{"$error":"#N/A"}},null,null,null,null,null,{"$error":"#DIV/0!"}]
[{"$f":"VLOOKUP(C26,Kode!A2:C219,2,FALSE)","v":{"$error":"#N/A"}},{"$f":"VLOOKUP(C26,Kode!A2:C219,3,FALSE)","v":{"$error":"#N/A"}},null,{"$f":"VLOOKUP(C26,Kode!A2:D219,4,FALSE)","v":{"$error":"#N/A"}},null,null,null,null,null,null,null,null,null,null,null,null,null,{"$f":"VLOOKUP(C26,Kode!A2:E219,5,FALSE)","v":{"$error":"#N/A"}},null,null,null,null,null,{"$error":"#DIV/0!"}]
[{"$f":"VLOOKUP(C27,Kode!A2:C219,2,FALSE)","v":{"$error":"#N/A"}},{"$f":"VLOOKUP(C27,Kode!A2:C219,3,FALSE)","v":{"$error":"#N/A"}},null,{"$f":"VLOOKUP(C27,Kode!A2:D219,4,FALSE)","v":{"$error":"#N/A"}},null,null,null,null,null,null,null,null,null,null,null,null,null,{"$f":"VLOOKUP(C27,Kode!A2:E219,5,FALSE)","v":{"$error":"#N/A"}},null,null,null,null,null,{"$error":"#DIV/0!"}]
[{"$f":"VLOOKUP(C28,Kode!A2:C219,2,FALSE)","v":{"$error":"#N/A"}},{"$f":"VLOOKUP(C28,Kode!A2:C219,3,FALSE)","v":{"$error":"#N/A"}},null,{"$f":"VLOOKUP(C28,Kode!A2:D219,4,FALSE)","v":{"$error":"#N/A"}},null,null,null,null,null,null,null,null,null,null,null,null,null,{"$f":"VLOOKUP(C28,Kode!A2:E219,5,FALSE)","v":{"$error":"#N/A"}},null,null,null,null,null,{"$error":"#DIV/0!"}]
[{"$f":"VLOOKUP(C29,Kode!A2:C219,2,FALSE)","v":{"$error":"#N/A"}},{"$f":"VLOOKUP(C29,Kode!A2:C219,3,FALSE)","v":{"$error":"#N/A"}},null,{"$f":"VLOOKUP(C29,Kode!A2:D219,4,FALSE)","v":{"$error":"#N/A"}},null,null,null,null,null,null,null,null,null,null,null,null,null,{"$f":"VLOOKUP(C29,Kode!A2:E219,5,FALSE)","v":{"$error":"#N/A"}},null,null,null,null,null,{"$error":"#DIV/0!"}]
[{"$f":"VLOOKUP(C30,Kode!A2:C219,2,FALSE)","v":{"$error":"#N/A"}},{"$f":"VLOOKUP(C30,Kode!A2:C219,3,FALSE)","v":{"$error":"#N/A"}},null,{"$f":"VLOOKUP(C30,Kode!A2:D219,4,FALSE)","v":{"$error":"#N/A"}},null,null,null,null,null,null,null,null,null,null,null,null,null,{"$f":"VLOOKUP(C30,Kode!A2:E219,5,FALSE)","v":{"$error":"#N/A"}},null,null,null,null,null,{"$error":"#DIV/0!"}]
[{"$f":"VLOOKUP(C31,Kode!A2:C219,2,FALSE)","v":{"$error":"#N/A"}},{"$f":"VLOOKUP(C31,Kode!A2:C219,3,FALSE)","v":{"$error":"#N/A"}},null,{"$f":"VLOOKUP(C31,Kode!A2:D219,4,FALSE)","v":{"$error":"#N/A"}},null,null,null,null,null,null,null,null,null,null,null,null,null,{"$f":"VLOOKUP(C31,Kode!A2:E219,5,FALSE)","v":{"$error":"#N/A"}},null,null,null,null,null,{"$error":"#DIV/0!"}]
[{"$f":"VLOOKUP(C32,Kode!A2:C219,2,FALSE)","v":{"$error":"#N/A"}},{"$f":"VLOOKUP(C32,Kode!A2:C219,3,FALSE)","v":{"$error":"#N/A"}},null,{"$f":"VLOOKUP(C32,Kode!A2:D219,4,FALSE)","v":{"$error":"#N/A"}},null,null,null,null,null,null,null,null,null,null,null,null,null,{"$f":"VLOOKUP(C32,Kode!A2:E219,5,FALSE)","v":{"$error":"#N/A"}},null,null,null,null,null,{"$error":"#DIV/0!"}]
[{"$f":"VLOOKUP(C33,Kode!A2:C219,2,FALSE)","v":{"$error":"#N/A"}},{"$f":"VLOOKUP(C33,Kode!A2:C219,3,FALSE)","v":{"$error":"#N/A"}},null,{"$f":"VLOOKUP(C33,Kode!A2:D219,4,FALSE)","v":{"$error":"#N/A"}},null,null,null,null,null,null,null,null,null,null,null,null,null,{"$f":"VLOOKUP(C33,Kode!A2:E219,5,FALSE)","v":{"$error":"#N/A"}},null,null,null,null,null,{"$error":"#DIV/0!"}]
[{"$f":"VLOOKUP(C34,Kode!A2:C219,2,FALSE)","v":{"$error":"#N/A"}},{"$f":"VLOOKUP(C34,Kode!A2:C219,3,FALSE)","v":{"$error":"#N/A"}},null,{"$f":"VLOOKUP(C34,Kode!A2:D219,4,FALSE)","v":{"$error":"#N/A"}},null,null,null,null,null,null,null,null,null,null,null,null,null,{"$f":"VLOOKUP(C34,Kode!A2:E219,5,FALSE)","v":{"$error":"#N/A"}},null,null,null,null,null,{"$error":"#DIV/0!"}]
[{"$f":"VLOOKUP(C35,Kode!A2:C219,2,FALSE)","v":{"$error":"#N/A"}},{"$f":"VLOOKUP(C35,Kode!A2:C219,3,FALSE)","v":{"$error":"#N/A"}},null,{"$f":"VLOOKUP(C35,Kode!A2:D219,4,FALSE)","v":{"$error":"#N/A"}},null,null,null,null,null,null,null,null,null,null,null,null,null,{"$f":"VLOOKUP(C35,Kode!A2:E219,5,FALSE)","v":{"$error":"#N/A"}},null,null,null,null,null,{"$error":"#DIV/0!"}]
[{"$f":"VLOOKUP(C36,Kode!A2:C219,2,FALSE)","v":{"$error":"#N/A"}},{"$f":"VLOOKUP(C36,Kode!A2:C219,3,FALSE)","v":{"$error":"#N/A"}},null,{"$f":"VLOOKUP(C36,Kode!A2:D219,4,FALSE)","v":{"$error":"#N/A"}},null,null,null,null,null,null,null,null,null,null,null,null,null,{"$f":"VLOOKUP(C36,Kode!A2:E219,5,FALSE)","v":{"$error":"#N/A"}},null,null,null,null,null,{"$error":"#DIV/0!"}]
[{"$f":"VLOOKUP(C37,Kode!A2:C219,2,FALSE)","v":{"$error":"#N/A"}},{"$f":"VLOOKUP(C37,Kode!A2:C219,3,FALSE)","v":{"$error":"#N/A"}},null,{"$f":"VLOOKUP(C37,Kode!A2:D219,4,FALSE)","v":{"$error":"#N/A"}},null,null,null,null,null,null,null,null,null,null,null,null,null,{"$f":"VLOOKUP(C37,Kode!A2:E219,5,FALSE)","v":{"$error":"#N/A"}},null,null,null,null,null,{"$error":"#DIV/0!"}]
[{"$f":"VLOOKUP(C38,Kode!A2:C219,2,FALSE)","v":{"$error":"#N/A"}},{"$f":"VLOOKUP(C38,Kode!A2:C219,3,FALSE)","v":{"$error":"#N/A"}},null,{"$f":"VLOOKUP(C38,Kode!A2:D219,4,FALSE)","v":{"$error":"#N/A"}},null,null,null,null,null,null,null,null,null,null,null,null,null,{"$f":"VLOOKUP(C38,Kode!A2:E219,5,FALSE)","v":{"$error":"#N/A"}},null,null,null,null,null,{"$error":"#DIV/0!"}]
[{"$f":"VLOOKUP(C39,Kode!A2:C219,2,FALSE)","v":{"$error":"#N/A"}},{"$f":"VLOOKUP(C39,Kode!A2:C219,3,FALSE)","v":{"$error":"#N/A"}},null,{"$f":"VLOOKUP(C39,Kode!A2:D219,4,FALSE)","v":{"$error":"#N/A"}},null,null,null,null,null,null,null,null,null,null,null,null,null,{"$f":"VLOOKUP(C39,Kode!A2:E219,5,FALSE)","v":{"$error":"#N/A"}},null,null,null,null,null,{"$error":"#DIV/0!"}]
[{"$f":"VLOOKUP(C40,Kode!A2:C219,2,FALSE)","v":{"$error":"#N/A"}},{"$f":"VLOOKUP(C40,Kode!A2:C219,3,FALSE)","v":{"$error":"#N/A"}},null,{"$f":"VLOOKUP(C40,Kode!A2:D219,4,FALSE)","v":{"$error":"#N/A"}},null,null,null,null,null,null,null,null,null,null,null,null,null,{"$f":"VLOOKUP(C40,Kode!A2:E219,5,FALSE)","v":{"$error":"#N/A"}},null,null,null,null,null,{"$error":"#DIV/0!"}]
[{"$f":"VLOOKUP(C41,Kode!A2:C219,2,FALSE)","v":{"$error":"#N/A"}},{"$f":"VLOOKUP(C41,Kode!A2:C219,3,FALSE)","v":{"$error":"#N/A"}},null,{"$f":"VLOOKUP(C41,Kode!A2:D219,4,FALSE)","v":{"$error":"#N/A"}},null,null,null,null,null,null,null,null,null,null,null,null,null,{"$f":"VLOOKUP(C41,Kode!A2:E219,5,FALSE)","v":{"$error":"#N/A"}},null,null,null,null,null,{"$error":"#DIV/0!"}]
[{"$f":"VLOOKUP(C42,Kode!A2:C219,2,FALSE)","v":{"$error":"#N/A"}},{"$f":"VLOOKUP(C42,Kode!A2:C219,3,FALSE)","v":{"$error":"#N/A"}},null,{"$f":"VLOOKUP(C42,Kode!A2:D219,4,FALSE)","v":{"$error":"#N/A"}},null,null,null,null,null,null,null,null,null,null,null,null,null,{"$f":"VLOOKUP(C42,Kode!A2:E219,5,FALSE)","v":{"$error":"#N/A"}},null,null,null,null,null,{"$error":"#DIV/0!"}]
[{"$f":"VLOOKUP(C43,Kode!A2:C219,2,FALSE)","v":{"$error":"#N/A"}},{"$f":"VLOOKUP(C43,Kode!A2:C219,3,FALSE)","v":{"$error":"#N/A"}},null,{"$f":"VLOOKUP(C43,Kode!A2:D219,4,FALSE)","v":{"$error":"#N/A"}},null,null,null,null,null,null,null,null,null,null,null,null,null,{"$f":"VLOOKUP(C43,Kode!A2:E219,5,FALSE)","v":{"$error":"#N/A"}},null,null,null,null,null,{"$error":"#DIV/0!"}]
[{"$f":"VLOOKUP(C44,Kode!A2:C219,2,FALSE)","v":{"$error":"#N/A"}},{"$f":"VLOOKUP(C44,Kode!A2:C219,3,FALSE)","v":{"$error":"#N/A"}},null,{"$f":"VLOOKUP(C44,Kode!A2:D219,4,FALSE)","v":{"$error":"#N/A"}},null,null,null,null,null,null,null,null,null,null,null,null,null,{"$f":"VLOOKUP(C44,Kode!A2:E219,5,FALSE)","v":{"$error":"#N/A"}},null,null,null,null,null,{"$error":"#DIV/0!"}]
[{"$f":"VLOOKUP(C45,Kode!A2:C219,2,FALSE)","v":{"$error":"#N/A"}},{"$f":"VLOOKUP(C45,Kode!A2:C219,3,FALSE)","v":{"$error":"#N/A"}},null,{"$f":"VLOOKUP(C45,Kode!A2:D219,4,FALSE)","v":{"$error":"#N/A"}},null,null,null,null,null,null,null,null,null,null,null,null,null,{"$f":"VLOOKUP(C45,Kode!A2:E219,5,FALSE)","v":{"$error":"#N/A"}},null,null,null,null,null,{"$error":"#DIV/0!"}]
[{"$f":"VLOOKUP(C46,Kode!A2:C219,2,FALSE)","v":{"$error":"#N/A"}},{"$f":"VLOOKUP(C46,Kode!A2:C219,3,FALSE)","v":{"$error":"#N/A"}},null,{"$f":"VLOOKUP(C46,Kode!A2:D219,4,FALSE)","v":{"$error":"#N/A"}},null,null,null,null,null,null,null,null,null,null,null,null,null,{"$f":"VLOOKUP(C46,Kode!A2:E219,5,FALSE)","v":{"$error":"#N/A"}},null,null,null,null,null,{"$error":"#DIV/0!"}]
[{"$f":"VLOOKUP(C47,Kode!A2:C219,2,FALSE)","v":{"$error":"#N/A"}},{"$f":"VLOOKUP(C47,Kode!A2:C219,3,FALSE)","v":{"$error":"#N/A"}},null,{"$f":"VLOOKUP(C47,Kode!A2:D219,4,FALSE)","v":{"$error":"#N/A"}},null,null,null,null,null,null,null,null,null,null,null,null,null,{"$f":"VLOOKUP(C47,Kode!A2:E219,5,FALSE)","v":{"$error":"#N/A"}},null,null,null,null,null,{"$error":"#DIV/0!"}]
[{"$f":"VLOOKUP(C48,Kode!A2:C219,2,FALSE)","v":{"$error":"#N/A"}},{"$f":"VLOOKUP(C48,Kode!A2:C219,3,FALSE)","v":{"$error":"#N/A"}},null,{"$f":"VLOOKUP(C48,Kode!A2:D219,4,FALSE)","v":{"$error":"#N/A"}},null,null,null,null,null,null,null,null,null,null,null,null,null,{"$f":"VLOOKUP(C48,Kode!A2:E219,5,FALSE)","v":{"$error":"#N/A"}},null,null,null,null,null,{"$error":"#DIV/0!"}]
[{"$f":"VLOOKUP(C49,Kode!A2:C219,2,FALSE)","v":{"$error":"#N/A"}},{"$f":"VLOOKUP(C49,Kode!A2:C219,3,FALSE)","v":{"$error":"#N/A"}},null,{"$f":"VLOOKUP(C49,Kode!A2:D219,4,FALSE)","v":{"$error":"#N/A"}},null,null,null,null,null,null,null,null,null,null,null,null,null,{"$f":"VLOOKUP(C49,Kode!A2:E219,5,FALSE)","v":{"$error":"#N/A"}},null,null,null,null,null,{"$error":"#DIV/0!"}]
[{"$f":"VLOOKUP(C50,Kode!A2:C219,2,FALSE)","v":{"$error":"#N/A"}},{"$f":"VLOOKUP(C50,Kode!A2:C219,3,FALSE)","v":{"$error":"#N/A"}},null,{"$f":"VLOOKUP(C50,Kode!A2:D219,4,FALSE)","v":{"$error":"#N/A"}},null,null,null,null,null,null,null,null,null,null,null,null,null,{"$f":"VLOOKUP(C50,Kode!A2:E219,5,FALSE)","v":{"$error":"#N/A"}},null,null,null,null,null,{"$error":"#DIV/0!"}]
[{"$f":"VLOOKUP(C51,Kode!A2:C219,2,FALSE)","v":{"$error":"#N/A"}},{"$f":"VLOOKUP(C51,Kode!A2:C219,3,FALSE)","v":{"$error":"#N/A"}},null,{"$f":"VLOOKUP(C51,Kode!A2:D219,4,FALSE)","v":{"$error":"#N/A"}},null,null,null,null,null,null,null,null,null,null,null,null,null,{"$f":"VLOOKUP(C51,Kode!A2:E219,5,FALSE)","v":{"$error":"#N/A"}},null,null,null,null,null,{"$error":"#DIV/0!"}]
[{"$f":"VLOOKUP(C52,Kode!A2:C219,2,FALSE)","v":{"$error":"#N/A"}},{"$f":"VLOOKUP(C52,Kode!A2:C219,3,FALSE)","v":{"$error":"#N/A"}},null,{"$f":"VLOOKUP(C52,Kode!A2:D219,4,FALSE)","v":{"$error":"#N/A"}},null,null,null,null,null,null,null,null,null,null,null,null,null,{"$f":"VLOOKUP(C52,Kode!A2:E219,5,FALSE)","v":{"$error":"#N/A"}},null,null,null,null,null,{"$error":"#DIV/0!"}]
[{"$f":"VLOOKUP(C53,Kode!A2:C219,2,FALSE)","v":{"$error":"#N/A"}},{"$f":"VLOOKUP(C53,Kode!A2:C219,3,FALSE)","v":{"$error":"#N/A"}},null,{"$f":"VLOOKUP(C53,Kode!A2:D219,4,FALSE)","v":{"$error":"#N/A"}},null,null,null,null,null,null,null,null,null,null,null,null,null,{"$f":"VLOOKUP(C53,Kode!A2:E219,5,FALSE)","v":{"$error":"#N/A"}},null,null,null,null,null,{"$error":"#DIV/0!"}]
[{"$f":"VLOOKUP(C54,Kode!A2:C219,2,FALSE)","v":{"$error":"#N/A"}},{"$f":"VLOOKUP(C54,Kode!A2:C219,3,FALSE)","v":{"$error":"#N/A"}},null,{"$f":"VLOOKUP(C54,Kode!A2:D219,4,FALSE)","v":{"$error":"#N/A"}},null,null,null,null,null,null,null,null,null,null,null,null,null,{"$f":"VLOOKUP(C54,Kode!A2:E219,5,FALSE)","v":{"$error":"#N/A"}},null,null,null,null,null,{"$error":"#DIV/0!"}]
[{"$f":"VLOOKUP(C55,Kode!A2:C219,2,FALSE)","v":{"$error":"#N/A"}},{"$f":"VLOOKUP(C55,Kode!A2:C219,3,FALSE)","v":{"$error":"#N/A"}},null,{"$f":"VLOOKUP(C55,Kode!A2:D219,4,FALSE)","v":{"$error":"#N/A"}},null,null,null,null,null,null,null,null,null,null,null,null,null,{"$f":"VLOOKUP(C55,Kode!A2:E219,5,FALSE)","v":{"$error":"#N/A"}},null,null,null,null,null,{"$error":"#DIV/0!"}]
[{"$f":"VLOOKUP(C56,Kode!A2:C219,2,FALSE)","v":{"$error":"#N/A"}},{"$f":"VLOOKUP(C56,Kode!A2:C219,3,FALSE)","v":{"$error":"#N/A"}},null,{"$f":"VLOOKUP(C56,Kode!A2:D219,4,FALSE)","v":{"$error":"#N/A"}},null,null,null,null,null,null,null,null,null,null,null,null,null,{"$f":"VLOOKUP(C56,Kode!A2:E219,5,FALSE)","v":{"$error":"#N/A"}},null,null,null,null,null,{"$error":"#DIV/0!"}]
[{"$f":"VLOOKUP(C57,Kode!A2:C219,2,FALSE)","v":{"$error":"#N/A"}},{"$f":"VLOOKUP(C57,Kode!A2:C219,3,FALSE)","v":{"$error":"#N/A"}},null,{"$f":"VLOOKUP(C57,Kode!A2:D219,4,FALSE)","v":{"$error":"#N/A"}},null,null,null,null,null,null,null,null,null,null,null,null,null,{"$f":"VLOOKUP(C57,Kode!A2:E219,5,FALSE)","v":{"$error":"#N/A"}},null,null,null,null,null,{"$error":"#DIV/0!"}]
[{"$f":"VLOOKUP(C58,Kode!A2:C219,2,FALSE)","v":{"$error":"#N/A"}},{"$f":"VLOOKUP(C58,Kode!A2:C219,3,FALSE)","v":{"$error":"#N/A"}},null,{"$f":"VLOOKUP(C58,Kode!A2:D219,4,FALSE)","v":{"$error":"#N/A"}},null,null,null,null,null,null,null,null,null,null,null,null,null,{"$f":"VLOOKUP(C58,Kode!A2:E219,5,FALSE)","v":{"$error":"#N/A"}},null,null,null,null,null,{"$error":"#DIV/0!"}]
[{"$f":"VLOOKUP(C59,Kode!A2:C219,2,FALSE)","v":{"$error":"#N/A"}},{"$f":"VLOOKUP(C59,Kode!A2:C219,3,FALSE)","v":{"$error":"#N/A"}},null,{"$f":"VLOOKUP(C59,Kode!A2:D219,4,FALSE)","v":{"$error":"#N/A"}},null,null,null,null,null,null,null,null,null,null,null,null,null,{"$f":"VLOOKUP(C59,Kode!A2:E219,5,FALSE)","v":{"$error":"#N/A"}},null,null,null,null,null,{"$error":"#DIV/0!"}]
[{"$f":"VLOOKUP(C60,Kode!A2:C219,2,FALSE)","v":{"$error":"#N/A"}},{"$f":"VLOOKUP(C60,Kode!A2:C219,3,FALSE)","v":{"$error":"#N/A"}},null,{"$f":"VLOOKUP(C60,Kode!A2:D219,4,FALSE)","v":{"$error":"#N/A"}},null,null,null,null,null,null,null,null,null,null,null,null,null,{"$f":"VLOOKUP(C60,Kode!A2:E219,5,FALSE)","v":{"$error":"#N/A"}},null,null,null,null,null,{"$error":"#DIV/0!"}]
[{"$f":"VLOOKUP(C61,Kode!A2:C219,2,FALSE)","v":{"$error":"#N/A"}},{"$f":"VLOOKUP(C61,Kode!A2:C219,3,FALSE)","v":{"$error":"#N/A"}},null,{"$f":"VLOOKUP(C61,Kode!A2:D219,4,FALSE)","v":{"$error":"#N/A"}},null,null,null,null,null,null,null,null,null,null,null,null,null,{"$f":"VLOOKUP(C61,Kode!A2:E219,5,FALSE)","v":{"$error":"#N/A"}},null,null,null,null,null,{"$error":"#DIV/0!"}]
[{"$f":"VLOOKUP(C62,Kode!A2:C219,2,FALSE)","v":{"$error":"#N/A"}},{"$f":"VLOOKUP(C62,Kode!A2:C219,3,FALSE)","v":{"$error":"#N/A"}},null,{"$f":"VLOOKUP(C62,Kode!A2:D219,4,FALSE)","v":{"$error":"#N/A"}},null,null,null,null,null,null,null,null,null,null,null,null,null,{"$f":"VLOOKUP(C62,Kode!A2:E219,5,FALSE)","v":{"$error":"#N/A"}},null,null,null,null,null,{"$error":"#DIV/0!"}]
[{"$f":"VLOOKUP(C63,Kode!A2:C219,2,FALSE)","v":{"$error":"#N/A"}},{"$f":"VLOOKUP(C63,Kode!A2:C219,3,FALSE)","v":{"$error":"#N/A"}},null,{"$f":"VLOOKUP(C63,Kode!A2:D219,4,FALSE)","v":{"$error":"#N/A"}},null,null,null,null,null,null,null,null,null,null,null,null,null,{"$f":"VLOOKUP(C63,Kode!A2:E219,5,FALSE)","v":{"$error":"#N/A"}},null,null,null,null,null,{"$error":"#DIV/0!"}]
[{"$f":"VLOOKUP(C64,Kode!A2:C219,2,FALSE)","v":{"$error":"#N/A"}},{"$f":"VLOOKUP(C64,Kode!A2:C219,3,FALSE)","v":{"$error":"#N/A"}},null,{"$f":"VLOOKUP(C64,Kode!A2:D219,4,FALSE)","v":{"$error":"#N/A"}},null,null,null,null,null,null,null,null,null,null,null,null,null,{"$f":"VLOOKUP(C64,Kode!A2:E219,5,FALSE)","v":{"$error":"#N/A"}},null,null,null,null,null,{"$error":"#DIV/0!"}]
[{"$f":"VLOOKUP(C65,Kode!A2:C219,2,FALSE)","v":{"$error":"#N/A"}},{"$f":"VLOOKUP(C65,Kode!A2:C219,3,FALSE)","v":{"$error":"#N/A"}},null,{"$f":"VLOOKUP(C65,Kode!A2:D219,4,FALSE)","v":{"$error":"#N/A"}},null,null,null,null,null,null,null,null,null,null,null,null,null,{"$f":"VLOOKUP(C65,Kode!A2:E219,5,FALSE)","v":{"$error":"#N/A"}},null,null,null,null,null,{"$error":"#DIV/0!"}]
[{"$f":"VLOOKUP(C66,Kode!A2:C219,2,FALSE)","v":{"$error":"#N/A"}},{"$f":"VLOOKUP(C66,Kode!A2:C219,3,FALSE)","v":{"$error":"#N/A"}},null,{"$f":"VLOOKUP(C66,Kode!A2:D219,4,FALSE)","v":{"$error":"#N/A"}},null,null,null,null,null,null,null,null,null,null,null,null,null,{"$f":"VLOOKUP(C66,Kode!A2:E219,5,FALSE)","v":{"$error":"#N/A"}},null,null,null,null,null,{"$error":"#DIV/0!"}]
[{"$f":"VLOOKUP(C67,Kode!A2:C219,2,FALSE)","v":{"$error":"#N/A"}},{"$f":"VLOOKUP(C67,Kode!A2:C219,3,FALSE)","v":{"$error":"#N/A"}},null,{"$f":"VLOOKUP(C67,Kode!A2:D219,4,FALSE)","v":{"$error":"#N/A"}},null,null,null,null,null,null,null,null,null,null,null,null,null,{"$f":"VLOOKUP(C67,Kode!A2:E219,5,FALSE)","v":{"$error":"#N/A"}},null,null,null,null,null,{"$f":"V67/T67*100","v":{"$error":"#DIV/0!"}}]
[{"$f":"VLOOKUP(C68,Kode!A2:C219,2,FALSE)","v":{"$error":"#N/A"}},{"$f":"VLOOKUP(C68,Kode!A2:C219,3,FALSE)","v":{"$error":"#N/A"}},null,{"$f":"VLOOKUP(C68,Kode!A2:D219,4,FALSE)","v":{"$error":"#N/A"}},null,null,null,null,null,null,null,null,null,null,null,null,null,{"$f":"VLOOKUP(C68,Kode!A2:E219,5,FALSE)","v":{"$error":"#N/A"}},null,null,null,null,null,{"$error":"#DIV/0!"}]
[{"$f":"VLOOKUP(C69,Kode!A2:C219,2,FALSE)","v":{"$error":"#N/A"}},{"$f":"VLOOKUP(C69,Kode!A2:C219,3,FALSE)","v":{"$error":"#N/A"}},null,{"$f":"VLOOKUP(C69,Kode!A2:D219,4,FALSE)","v":{"$error":"#N/A"}},null,null,null,null,null,null,null,null,null,null,null,null,null,{"$f":"VLOOKUP(C69,Kode!A2:E219,5,FALSE)","v":{"$error":"#N/A"}},null,null,null,null,null,{"$error":"#DIV/0!"}]
[{"$f":"VLOOKUP(C70,Kode!A2:C219,2,FALSE)","v":{"$error":"#N/A"}},{"$f":"VLOOKUP(C70,Kode!A2:C219,3,FALSE)","v":{"$error":"#N/A"}},null,{"$f":"VLOOKUP(C70,Kode!A2:D219,4,FALSE)","v":{"$error":"#N/A"}},null,null,null,null,null,null,null,null,null,null,null,null,null,{"$f":"VLOOKUP(C70,Kode!A2:E219,5,FALSE)","v":{"$error":"#N/A"}},null,null,null,null,null,{"$error":"#DIV/0!"}]
[{"$f":"VLOOKUP(C71,Kode!A2:C219,2,FALSE)","v":{"$error":"#N/A"}},{"$f":"VLOOKUP(C71,Kode!A2:C219,3,FALSE)","v":{"$error":"#N/A"}},null,{"$f":"VLOOKUP(C71,Kode!A2:D219,4,FALSE)","v":{"$error":"#N/A"}},null,null,null,null,null,null,null,null,null,null,null,null,null,{"$f":"VLOOKUP(C71,Kode!A2:E219,5,FALSE)","v":{"$error":"#N/A"}},null,null,null,null,null,{"$error":"#DIV/0!"}]
[{"$f":"VLOOKUP(C72,Kode!A2:C219,2,FALSE)","v":{"$error":"#N/A"}},{"$f":"VLOOKUP(C72,Kode!A2:C219,3,FALSE)","v":{"$error":"#N/A"}},null,{"$f":"VLOOKUP(C72,Kode!A2:D219,4,FALSE)","v":{"$error":"#N/A"}},null,null,null,null,null,null,null,null,null,null,null,null,null,{"$f":"VLOOKUP(C72,Kode!A2:E219,5,FALSE)","v":{"$error":"#N/A"}},null,null,null,null,null,{"$error":"#DIV/0!"}]
[{"$f":"VLOOKUP(C73,Kode!A2:C219,2,FALSE)","v":{"$error":"#N/A"}},{"$f":"VLOOKUP(C73,Kode!A2:C219,3,FALSE)","v":{"$error":"#N/A"}},null,{"$f":"VLOOKUP(C73,Kode!A2:D219,4,FALSE)","v":{"$error":"#N/A"}},null,null,null,null,null,null,null,null,null,null,null,null,null,{"$f":"VLOOKUP(C73,Kode!A2:E219,5,FALSE)","v":{"$error":"#N/A"}},null,null,null,null,null,{"$error":"#DIV/0!"}]
[{"$f":"VLOOKUP(C74,Kode!A2:C219,2,FALSE)","v":{"$error":"#N/A"}},{"$f":"VLOOKUP(C74,Kode!A2:C219,3,FALSE)","v":{"$error":"#N/A"}},null,{"$f":"VLOOKUP(C74,Kode!A2:D219,4,FALSE)","v":{"$error":"#N/A"}},null,null,null,null,null,null,null,null,null,null,null,null,null,{"$f":"VLOOKUP(C74,Kode!A2:E219,5,FALSE)","v":{"$error":"#N/A"}},null,null,null,null,null,{"$error":"#DIV/0!"}]
[{"$f":"VLOOKUP(C75,Kode!A2:C219,2,FALSE)","v":{"$error":"#N/A"}},{"$f":"VLOOKUP(C75,Kode!A2:C219,3,FALSE)","v":{"$error":"#N/A"}},null,{"$f":"VLOOKUP(C75,Kode!A2:D219,4,FALSE)","v":{"$error":"#N/A"}},null,null,null,null,null,null,null,null,null,null,null,null,null,{"$f":"VLOOKUP(C75,Kode!A2:E219,5,FALSE)","v":{"$error":"#N/A"}},null,null,null,null,null,{"$error":"#DIV/0!"}]
[{"$f":"VLOOKUP(C76,Kode!A2:C219,2,FALSE)","v":{"$error":"#N/A"}},{"$f":"VLOOKUP(C76,Kode!A2:C219,3,FALSE)","v":{"$error":"#N/A"}},null,{"$f":"VLOOKUP(C76,Kode!A2:D219,4,FALSE)","v":{"$error":"#N/A"}},null,null,null,null,null,null,null,null,null,null,null,null,null,{"$f":"VLOOKUP(C76,Kode!A2:E219,5,FALSE)","v":{"$error":"#N/A"}},null,null,null,null,null,{"$error":"#DIV/0!"}]
[{"$f":"VLOOKUP(C77,Kode!A2:C219,2,FALSE)","v":{"$error":"#N/A"}},{"$f":"VLOOKUP(C77,Kode!A2:C219,3,FALSE)","v":{"$error":"#N/A"}},null,{"$f":"VLOOKUP(C77,Kode!A2:D219,4,FALSE)","v":{"$error":"#N/A"}},null,null,null,null,null,null,null,null,null,null,null,null,null,{"$f":"VLOOKUP(C77,Kode!A2:E219,5,FALSE)","v":{"$error":"#N/A"}},null,null,null,null,null,{"$error":"#DIV/0!"}]
[{"$f":"VLOOKUP(C78,Kode!A2:C219,2,FALSE)","v":{"$error":"#N/A"}},{"$f":"VLOOKUP(C78,Kode!A2:C219,3,FALSE)","v":{"$error":"#N/A"}},null,{"$f":"VLOOKUP(C78,Kode!A2:D219,4,FALSE)","v":{"$error":"#N/A"}},null,null,null,null,null,null,null,null,null,null,null,null,null,{"$f":"VLOOKUP(C78,Kode!A2:E219,5,FALSE)","v":{"$error":"#N/A"}},null,null,null,null,null,{"$error":"#DIV/0!"}]
[{"$f":"VLOOKUP(C79,Kode!A2:C219,2,FALSE)","v":{"$error":"#N/A"}},{"$f":"VLOOKUP(C79,Kode!A2:C219,3,FALSE)","v":{"$error":"#N/A"}},null,{"$f":"VLOOKUP(C79,Kode!A2:D219,4,FALSE)","v":{"$error":"#N/A"}},null,null,null,null,null,null,null,null,null,null,null,null,null,{"$f":"VLOOKUP(C79,Kode!A2:E219,5,FALSE)","v":{"$error":"#N/A"}},null,null,null,null,null,{"$error":"#DIV/0!"}]
[{"$f":"VLOOKUP(C80,Kode!A2:C219,2,FALSE)","v":{"$error":"#N/A"}},{"$f":"VLOOKUP(C80,Kode!A2:C219,3,FALSE)","v":{"$error":"#N/A"}},null,{"$f":"VLOOKUP(C80,Kode!A2:D219,4,FALSE)","v":{"$error":"#N/A"}},null,null,null,null,null,null,null,null,null,null,null,null,null,{"$f":"VLOOKUP(C80,Kode!A2:E219,5,FALSE)","v":{"$error":"#N/A"}},null,null,null,null,null,{"$error":"#DIV/0!"}]
[{"$f":"VLOOKUP(C81,Kode!A2:C219,2,FALSE)","v":{"$error":"#N/A"}},{"$f":"VLOOKUP(C81,Kode!A2:C219,3,FALSE)","v":{"$error":"#N/A"}},null,{"$f":"VLOOKUP(C81,Kode!A2:D219,4,FALSE)","v":{"$error":"#N/A"}},null,null,null,null,null,null,null,null,null,null,null,null,null,{"$f":"VLOOKUP(C81,Kode!A2:E219,5,FALSE)","v":{"$error":"#N/A"}},null,null,null,null,null,{"$error":"#DIV/0!"}]
[{"$f":"VLOOKUP(C82,Kode!A2:C219,2,FALSE)","v":{"$error":"#N/A"}},{"$f":"VLOOKUP(C82,Kode!A2:C219,3,FALSE)","v":{"$error":"#N/A"}},null,{"$f":"VLOOKUP(C82,Kode!A2:D219,4,FALSE)","v":{"$error":"#N/A"}},null,null,null,null,null,null,null,null,null,null,null,null,null,{"$f":"VLOOKUP(C82,Kode!A2:E219,5,FALSE)","v":{"$error":"#N/A"}},null,null,null,null,null,{"$error":"#DIV/0!"}]
[{"$f":"VLOOKUP(C83,Kode!A2:C219,2,FALSE)","v":{"$error":"#N/A"}},{"$f":"VLOOKUP(C83,Kode!A2:C219,3,FALSE)","v":{"$error":"#N/A"}},null,{"$f":"VLOOKUP(C83,Kode!A2:D219,4,FALSE)","v":{"$error":"#N/A"}},null,null,null,null,null,null,null,null,null,null,null,null,null,{"$f":"VLOOKUP(C83,Kode!A2:E219,5,FALSE)","v":{"$error":"#N/A"}},null,null,null,null,null,{"$error":"#DIV/0!"}]
[{"$f":"VLOOKUP(C84,Kode!A2:C219,2,FALSE)","v":{"$error":"#N/A"}},{"$f":"VLOOKUP(C84,Kode!A2:C219,3,FALSE)","v":{"$error":"#N/A"}},null,{"$f":"VLOOKUP(C84,Kode!A2:D219,4,FALSE)","v":{"$error":"#N/A"}},null,null,null,null,null,null,null,null,null,null,null,null,null,{"$f":"VLOOKUP(C84,Kode!A2:E219,5,FALSE)","v":{"$error":"#N/A"}},null,null,null,null,null,{"$error":"#DIV/0!"}]
[{"$f":"VLOOKUP(C85,Kode!A2:C219,2,FALSE)","v":{"$error":"#N/A"}},{"$f":"VLOOKUP(C85,Kode!A2:C219,3,FALSE)","v":{"$error":"#N/A"}},null,{"$f":"VLOOKUP(C85,Kode!A2:D219,4,FALSE)","v":{"$error":"#N/A"}},null,null,null,null,null,null,null,null,null,null,null,null,null,{"$f":"VLOOKUP(C85,Kode!A2:E219,5,FALSE)","v":{"$error":"#N/A"}},null,null,null,null,null,{"$error":"#DIV/0!"}]
[{"$f":"VLOOKUP(C86,Kode!A2:C219,2,FALSE)","v":{"$error":"#N/A"}},{"$f":"VLOOKUP(C86,Kode!A2:C219,3,FALSE)","v":{"$error":"#N/A"}},null,{"$f":"VLOOKUP(C86,Kode!A2:D219,4,FALSE)","v":{"$error":"#N/A"}},null,null,null,null,null,null,null,null,null,null,null,null,null,{"$f":"VLOOKUP(C86,Kode!A2:E219,5,FALSE)","v":{"$error":"#N/A"}},null,null,null,null,null,{"$error":"#DIV/0!"}]
[{"$f":"VLOOKUP(C87,Kode!A2:C219,2,FALSE)","v":{"$error":"#N/A"}},{"$f":"VLOOKUP(C87,Kode!A2:C219,3,FALSE)","v":{"$error":"#N/A"}},null,{"$f":"VLOOKUP(C87,Kode!A2:D219,4,FALSE)","v":{"$error":"#N/A"}},null,null,null,null,null,null,null,null,null,null,null,null,null,{"$f":"VLOOKUP(C87,Kode!A2:E219,5,FALSE)","v":{"$error":"#N/A"}},null,null,null,null,null,{"$error":"#DIV/0!"}]
[{"$f":"VLOOKUP(C88,Kode!A2:C219,2,FALSE)","v":{"$error":"#N/A"}},{"$f":"VLOOKUP(C88,Kode!A2:C219,3,FALSE)","v":{"$error":"#N/A"}},null,{"$f":"VLOOKUP(C88,Kode!A2:D219,4,FALSE)","v":{"$error":"#N/A"}},null,null,null,null,null,null,null,null,null,null,null,null,null,{"$f":"VLOOKUP(C88,Kode!A2:E219,5,FALSE)","v":{"$error":"#N/A"}},null,null,null,null,null,{"$error":"#DIV/0!"}]
[{"$f":"VLOOKUP(C89,Kode!A2:C219,2,FALSE)","v":{"$error":"#N/A"}},{"$f":"VLOOKUP(C89,Kode!A2:C219,3,FALSE)","v":{"$error":"#N/A"}},null,{"$f":"VLOOKUP(C89,Kode!A2:D219,4,FALSE)","v":{"$error":"#N/A"}},null,null,null,null,null,null,null,null,null,null,null,null,null,{"$f":"VLOOKUP(C89,Kode!A2:E219,5,FALSE)","v":{"$error":"#N/A"}},null,null,null,null,null,{"$error":"#DIV/0!"}]
[{"$f":"VLOOKUP(C90,Kode!A2:C219,2,FALSE)","v":{"$error":"#N/A"}},{"$f":"VLOOKUP(C90,Kode!A2:C219,3,FALSE)","v":{"$error":"#N/A"}},null,{"$f":"VLOOKUP(C90,Kode!A2:D219,4,FALSE)","v":{"$error":"#N/A"}},null,null,null,null,null,null,null,null,null,null,null,null,null,{"$f":"VLOOKUP(C90,Kode!A2:E219,5,FALSE)","v":{"$error":"#N/A"}},null,null,null,null,null,{"$error":"#DIV/0!"}]
[{"$f":"VLOOKUP(C91,Kode!A2:C219,2,FALSE)","v":{"$error":"#N/A"}},{"$f":"VLOOKUP(C91,Kode!A2:C219,3,FALSE)","v":{"$error":"#N/A"}},null,{"$f":"VLOOKUP(C91,Kode!A2:D219,4,FALSE)","v":{"$error":"#N/A"}},null,null,null,null,null,null,null,null,null,null,null,null,null,{"$f":"VLOOKUP(C91,Kode!A2:E219,5,FALSE)","v":{"$error":"#N/A"}},null,null,null,null,null,{"$error":"#DIV/0!"}]
[{"$f":"VLOOKUP(C92,Kode!A2:C219,2,FALSE)","v":{"$error":"#N/A"}},{"$f":"VLOOKUP(C92,Kode!A2:C219,3,FALSE)","v":{"$error":"#N/A"}},null,{"$f":"VLOOKUP(C92,Kode!A2:D219,4,FALSE)","v":{"$error":"#N/A"}},null,null,null,null,null,null,null,null,null,null,null,null,null,{"$f":"VLOOKUP(C92,Kode!A2:E219,5,FALSE)","v":{"$error":"#N/A"}},null,null,null,null,null,{"$error":"#DIV/0!"}]
[{"$f":"VLOOKUP(C93,Kode!A2:C219,2,FALSE)","v":{"$error":"#N/A"}},{"$f":"VLOOKUP(C93,Kode!A2:C219,3,FALSE)","v":{"$error":"#N/A"}},null,{"$f":"VLOOKUP(C93,Kode!A2:D219,4,FALSE)","v":{"$error":"#N/A"}},null,null,null,null,null,null,null,null,null,null,null,null,null,{"$f":"VLOOKUP(C93,Kode!A2:E219,5,FALSE)","v":{"$error":"#N/A"}},null,null,null,null,null,{"$error":"#DIV/0!"}]
[{"$f":"VLOOKUP(C94,Kode!A2:C219,2,FALSE)","v":{"$error":"#N/A"}},{"$f":"VLOOKUP(C94,Kode!A2:C219,3,FALSE)","v":{"$error":"#N/A"}},null,{"$f":"VLOOKUP(C94,Kode!A2:D219,4,FALSE)","v":{"$error":"#N/A"}},null,null,null,null,null,null,null,null,null,null,null,null,null,{"$f":"VLOOKUP(C94,Kode!A2:E219,5,FALSE)","v":{"$error":"#N/A"}},null,null,null,null,null,{"$error":"#DIV/0!"}]
[{"$f":"VLOOKUP(C95,Kode!A2:C219,2,FALSE)","v":{"$error":"#N/A"}},{"$f":"VLOOKUP(C95,Kode!A2:C219,3,FALSE)","v":{"$error":"#N/A"}},null,{"$f":"VLOOKUP(C95,Kode!A2:D219,4,FALSE)","v":{"$error":"#N/A"}},null,null,null,null,null,null,null,null,null,null,null,null,null,{"$f":"VLOOKUP(C95,Kode!A2:E219,5,FALSE)","v":{"$error":"#N/A"}},null,null,null,null,null,{"$error":"#DIV/0!"}]
[{"$f":"VLOOKUP(C96,Kode!A2:C219,2,FALSE)","v":{"$error":"#N/A"}},{"$f":"VLOOKUP(C96,Kode!A2:C219,3,FALSE)","v":{"$error":"#N/A"}},null,{"$f":"VLOOKUP(C96,Kode!A2:D219,4,FALSE)","v":{"$error":"#N/A"}},null,null,null,null,null,null,null,null,null,null,null,null,null,{"$f":"VLOOKUP(C96,Kode!A2:E219,5,FALSE)","v":{"$error":"#N/A"}},null,null,null,null,null,{"$error":"#DIV/0!"}]
[{"$f":"VLOOKUP(C97,Kode!A2:C219,2,FALSE)","v":{"$error":"#N/A"}},{"$f":"VLOOKUP(C97,Kode!A2:C219,3,FALSE)","v":{"$error":"#N/A"}},null,{"$f":"VLOOKUP(C97,Kode!A2:D219,4,FALSE)","v":{"$error":"#N/A"}},null,null,null,null,null,null,null,null,null,null,null,null,null,{"$f":"VLOOKUP(C97,Kode!A2:E219,5,FALSE)","v":{"$error":"#N/A"}},null,null,null,null,null,{"$error":"#DIV/0!"}]
[{"$f":"VLOOKUP(C98,Kode!A2:C219,2,FALSE)","v":{"$error":"#N/A"}},{"$f":"VLOOKUP(C98,Kode!A2:C219,3,FALSE)","v":{"$error":"#N/A"}},null,{"$f":"VLOOKUP(C98,Kode!A2:D219,4,FALSE)","v":{"$error":"#N/A"}},null,null,null,null,null,null,null,null,null,null,null,null,null,{"$f":"VLOOKUP(C98,Kode!A2:E219,5,FALSE)","v":{"$error":"#N/A"}},null,null,null,null,null,{"$error":"#DIV/0!"}]
[{"$f":"VLOOKUP(C99,Kode!A2:C219,2,FALSE)","v":{"$error":"#N/A"}},{"$f":"VLOOKUP(C99,Kode!A2:C219,3,FALSE)","v":{"$error":"#N/A"}},null,{"$f":"VLOOKUP(C99,Kode!A2:D219,4,FALSE)","v":{"$error":"#N/A"}},null,null,null,null,null,null,null,null,null,null,null,null,null,{"$f":"VLOOKUP(C99,Kode!A2:E219,5,FALSE)","v":{"$error":"#N/A"}},null,null,null,null,null,{"$error":"#DIV/0!"}]
[{"$f":"VLOOKUP(C100,Kode!A2:C219,2,FALSE)","v":{"$error":"#N/A"}},{"$f":"VLOOKUP(C100,Kode!A2:C219,3,FALSE)","v":{"$error":"#N/A"}},null,{"$f":"VLOOKUP(C100,Kode!A2:D219,4,FALSE)","v":{"$error":"#N/A"}},null,null,null,null,null,null,null,null,null,null,null,null,null,{"$f":"VLOOKUP(C100,Kode!A2:E219,5,FALSE)","v":{"$error":"#N/A"}},null,null,null,null,null,{"$error":"#DIV/0!"}]
[{"$f":"VLOOKUP(C101,Kode!A2:C219,2,FALSE)","v":{"$error":"#N/A"}},{"$f":"VLOOKUP(C101,Kode!A2:C219,3,FALSE)","v":{"$error":"#N/A"}},null,{"$f":"VLOOKUP(C101,Kode!A2:D219,4,FALSE)","v":{"$error":"#N/A"}},null,null,null,null,null,null,null,null,null,null,null,null,null,{"$f":"VLOOKUP(C101,Kode!A2:E219,5,FALSE)","v":{"$error":"#N/A"}},null,null,null,null,null,{"$error":"#DIV/0!"}]
[{"$f":"VLOOKUP(C102,Kode!A2:C219,2,FALSE)","v":{"$error":"#N/A"}},{"$f":"VLOOKUP(C102,Kode!A2:C219,3,FALSE)","v":{"$error":"#N/A"}},null,{"$f":"VLOOKUP(C102,Kode!A2:D219,4,FALSE)","v":{"$error":"#N/A"}},null,null,null,null,null,null,null,null,null,null,null,null,null,{"$f":"VLOOKUP(C102,Kode!A2:E219,5,FALSE)","v":{"$error":"#N/A"}},null,null,null,null,null,{"$error":"#DIV/0!"}]
[{"$f":"VLOOKUP(C103,Kode!A2:C219,2,FALSE)","v":{"$error":"#N/A"}},{"$f":"VLOOKUP(C103,Kode!A2:C219,3,FALSE)","v":{"$error":"#N/A"}},null,{"$f":"VLOOKUP(C103,Kode!A2:D219,4,FALSE)","v":{"$error":"#N/A"}},null,null,null,null,null,null,null,null,null,null,null,null,null,{"$f":"VLOOKUP(C103,Kode!A2:E219,5,FALSE)","v":{"$error":"#N/A"}},null,null,null,null,null,{"$error":"#DIV/0!"}]
[{"$f":"VLOOKUP(C104,Kode!A2:C219,2,FALSE)","v":{"$error":"#N/A"}},{"$f":"VLOOKUP(C104,Kode!A2:C219,3,FALSE)","v":{"$error":"#N/A"}},null,{"$f":"VLOOKUP(C104,Kode!A2:D219,4,FALSE)","v":{"$error":"#N/A"}},null,null,null,null,null,null,null,null,null,null,null,null,null,{"$f":"VLOOKUP(C104,Kode!A2:E219,5,FALSE)","v":{"$error":"#N/A"}},null,null,null,null,null,{"$error":"#DIV/0!"}]
[{"$f":"VLOOKUP(C105,Kode!A2:C219,2,FALSE)","v":{"$error":"#N/A"}},{"$f":"VLOOKUP(C105,Kode!A2:C219,3,FALSE)","v":{"$error":"#N/A"}},null,{"$f":"VLOOKUP(C105,Kode!A2:D219,4,FALSE)","v":{"$error":"#N/A"}},null,null,null,null,null,null,null,null,null,null,null,null,null,{"$f":"VLOOKUP(C105,Kode!A2:E219,5,FALSE)","v":{"$error":"#N/A"}},null,null,null,null,null,{"$error":"#DIV/0!"}]
[{"$f":"VLOOKUP(C106,Kode!A2:C219,2,FALSE)","v":{"$error":"#N/A"}},{"$f":"VLOOKUP(C106,Kode!A2:C219,3,FALSE)","v":{"$error":"#N/A"}},null,{"$f":"VLOOKUP(C106,Kode!A2:D219,4,FALSE)","v":{"$error":"#N/A"}},null,null,null,null,null,null,null,null,null,null,null,null,null,{"$f":"VLOOKUP(C106,Kode!A2:E219,5,FALSE)","v":{"$error":"#N/A"}},null,null,null,null,null,{"$error":"#DIV/0!"}]
[{"$f":"VLOOKUP(C107,Kode!A2:C219,2,FALSE)","v":{"$error":"#N/A"}},{"$f":"VLOOKUP(C107,Kode!A2:C219,3,FALSE)","v":{"$error":"#N/A"}},null,{"$f":"VLOOKUP(C107,Kode!A2:D219,4,FALSE)","v":{"$error":"#N/A"}},null,null,null,null,null,null,null,null,null,null,null,null,null,{"$f":"VLOOKUP(C107,Kode!A2:E219,5,FALSE)","v":{"$error":"#N/A"}},null,null,null,null,null,{"$error":"#DIV/0!"}]
[{"$f":"VLOOKUP(C108,Kode!A2:C219,2,FALSE)","v":{"$error":"#N/A"}},{"$f":"VLOOKUP(C108,Kode!A2:C219,3,FALSE)","v":{"$error":"#N/A"}},null,{"$f":"VLOOKUP(C108,Kode!A2:D219,4,FALSE)","v":{"$error":"#N/A"}},null,null,null,null,null,null,null,null,null,null,null,null,null,{"$f":"VLOOKUP(C108,Kode!A2:E219,5,FALSE)","v":{"$error":"#N/A"}},null,null,null,null,null,{"$error":"#DIV/0!"}]
[{"$f":"VLOOKUP(C109,Kode!A2:C219,2,FALSE)","v":{"$error":"#N/A"}},{"$f":"VLOOKUP(C109,Kode!A2:C219,3,FALSE)","v":{"$error":"#N/A"}},null,{"$f":"VLOOKUP(C109,Kode!A2:D219,4,FALSE)","v":{"$error":"#N/A"}},null,null,null,null,null,null,null,null,null,null,null,null,null,{"$f":"VLOOKUP(C109,Kode!A2:E219,5,FALSE)","v":{"$error":"#N/A"}},null,null,null,null,null,{"$error":"#DIV/0!"}]
[{"$f":"VLOOKUP(C110,Kode!A2:C219,2,FALSE)","v":{"$error":"#N/A"}},{"$f":"VLOOKUP(C110,Kode!A2:C219,3,FALSE)","v":{"$error":"#N/A"}},null,{"$f":"VLOOKUP(C110,Kode!A2:D219,4,FALSE)","v":{"$error":"#N/A"}},null,null,null,null,null,null,null,null,null,null,null,null,null,{"$f":"VLOOKUP(C110,Kode!A2:E219,5,FALSE)","v":{"$error":"#N/A"}},null,null,null,null,null,{"$error":"#DIV/0!"}]
[{"$f":"VLOOKUP(C111,Kode!A2:C219,2,FALSE)","v":{"$error":"#N/A"}},{"$f":"VLOOKUP(C111,Kode!A2:C219,3,FALSE)","v":{"$error":"#N/A"}},null,{"$f":"VLOOKUP(C111,Kode!A2:D219,4,FALSE)","v":{"$error":"#N/A"}},null,null,null,null,null,null,null,null,null,null,null,null,null,{"$f":"VLOOKUP(C111,Kode!A2:E219,5,FALSE)","v":{"$error":"#N/A"}},null,null,null,null,null,{"$error":"#DIV/0!"}]
[{"$f":"VLOOKUP(C112,Kode!A2:C219,2,FALSE)","v":{"$error":"#N/A"}},{"$f":"VLOOKUP(C112,Kode!A2:C219,3,FALSE)","v":{"$error":"#N/A"}},null,{"$f":"VLOOKUP(C112,Kode!A2:D219,4,FALSE)","v":{"$error":"#N/A"}},null,null,null,null,null,null,null,null,null,null,null,null,null,{"$f":"VLOOKUP(C112,Kode!A2:E219,5,FALSE)","v":{"$error":"#N/A"}},null,null,null,null,null,{"$error":"#DIV/0!"}]
[{"$f":"VLOOKUP(C113,Kode!A2:C219,2,FALSE)","v":{"$error":"#N/A"}},{"$f":"VLOOKUP(C113,Kode!A2:C219,3,FALSE)","v":{"$error":"#N/A"}},null,{"$f":"VLOOKUP(C113,Kode!A2:D219,4,FALSE)","v":{"$error":"#N/A"}},null,null,null,null,null,null,null,null,null,null,null,null,null,{"$f":"VLOOKUP(C113,Kode!A2:E219,5,FALSE)","v":{"$error":"#N/A"}},null,null,null,null,null,{"$error":"#DIV/0!"}]
[{"$f":"VLOOKUP(C114,Kode!A2:C219,2,FALSE)","v":{"$error":"#N/A"}},{"$f":"VLOOKUP(C114,Kode!A2:C219,3,FALSE)","v":{"$error":"#N/A"}},null,{"$f":"VLOOKUP(C114,Kode!A2:D219,4,FALSE)","v":{"$error":"#N/A"}},null,null,null,null,null,null,null,null,null,null,null,null,null,{"$f":"VLOOKUP(C114,Kode!A2:E219,5,FALSE)","v":{"$error":"#N/A"}},null,null,null,null,null,{"$error":"#DIV/0!"}]
[{"$f":"VLOOKUP(C115,Kode!A2:C219,2,FALSE)","v":{"$error":"#N/A"}},{"$f":"VLOOKUP(C115,Kode!A2:C219,3,FALSE)","v":{"$error":"#N/A"}},null,{"$f":"VLOOKUP(C115,Kode!A2:D219,4,FALSE)","v":{"$error":"#N/A"}},null,null,null,null,null,null,null,null,null,null,null,null,null,{"$f":"VLOOKUP(C115,Kode!A2:E219,5,FALSE)","v":{"$error":"#N/A"}},null,null,null,null,null,{"$error":"#DIV/0!"}]
[{"$f":"VLOOKUP(C116,Kode!A2:C219,2,FALSE)","v":{"$error":"#N/A"}},{"$f":"VLOOKUP(C116,Kode!A2:C219,3,FALSE)","v":{"$error":"#N/A"}},null,{"$f":"VLOOKUP(C116,Kode!A2:D219,4,FALSE)","v":{"$error":"#N/A"}},null,null,null,null,null,null,null,null,null,null,null,null,null,{"$f":"VLOOKUP(C116,Kode!A2:E219,5,FALSE)","v":{"$error":"#N/A"}},null,null,null,null,null,{"$error":"#DIV/0!"}]
[{"$f":"VLOOKUP(C117,Kode!A2:C219,2,FALSE)","v":{"$error":"#N/A"}},{"$f":"VLOOKUP(C117,Kode!A2:C219,3,FALSE)","v":{"$error":"#N/A"}},null,{"$f":"VLOOKUP(C117,Kode!A2:D219,4,FALSE)","v":{"$error":"#N/A"}},null,null,null,null,null,null,null,null,null,null,null,null,null,{"$f":"VLOOKUP(C117,Kode!A2:E219,5,FALSE)","v":{"$error":"#N/A"}},null,null,null,null,null,{"$error":"#DIV/0!"}]
[{"$f":"VLOOKUP(C118,Kode!A2:C219,2,FALSE)","v":{"$error":"#N/A"}},{"$f":"VLOOKUP(C118,Kode!A2:C219,3,FALSE)","v":{"$error":"#N/A"}},null,{"$f":"VLOOKUP(C118,Kode!A2:D219,4,FALSE)","v":{"$error":"#N/A"}},null,null,null,null,null,null,null,null,null,null,null,null,null,{"$f":"VLOOKUP(C118,Kode!A2:E219,5,FALSE)","v":{"$error":"#N/A"}},null,null,null,null,null,{"$error":"#DIV/0!"}]
[{"$f":"VLOOKUP(C119,Kode!A2:C219,2,FALSE)","v":{"$error":"#N/A"}},{"$f":"VLOOKUP(C119,Kode!A2:C219,3,FALSE)","v":{"$error":"#N/A"}},null,{"$f":"VLOOKUP(C119,Kode!A2:D219,4,FALSE)","v":{"$error":"#N/A"}},null,null,null,null,null,null,null,null,null,null,null,null,null,{"$f":"VLOOKUP(C119,Kode!A2:E219,5,FALSE)","v":{"$error":"#N/A"}},null,null,null,null,null,{"$error":"#DIV/0!"}]
[{"$f":"VLOOKUP(C120,Kode!A2:C219,2,FALSE)","v":{"$error":"#N/A"}},{"$f":"VLOOKUP(C120,Kode!A2:C219,3,FALSE)","v":{"$error":"#N/A"}},null,{"$f":"VLOOKUP(C120,Kode!A2:D219,4,FALSE)","v":{"$error":"#N/A"}},null,null,null,null,null,null,null,null,null,null,null,null,null,{"$f":"VLOOKUP(C120,Kode!A2:E219,5,FALSE)","v":{"$error":"#N/A"}},null,null,null,null,null,{"$error":"#DIV/0!"}]
[{"$f":"VLOOKUP(C121,Kode!A2:C219,2,FALSE)","v":{"$error":"#N/A"}},{"$f":"VLOOKUP(C121,Kode!A2:C219,3,FALSE)","v":{"$error":"#N/A"}},null,{"$f":"VLOOKUP(C121,Kode!A2:D219,4,FALSE)","v":{"$error":"#N/A"}},null,null,null,null,null,null,null,null,null,null,null,null,null,{"$f":"VLOOKUP(C121,Kode!A2:E219,5,FALSE)","v":{"$error":"#N/A"}},null,null,null,null,null,{"$error":"#DIV/0!"}]
[{"$f":"VLOOKUP(C122,Kode!A2:C219,2,FALSE)","v":{"$error":"#N/A"}},{"$f":"VLOOKUP(C122,Kode!A2:C219,3,FALSE)","v":{"$error":"#N/A"}},null,{"$f":"VLOOKUP(C122,Kode!A2:D219,4,FALSE)","v":{"$error":"#N/A"}},null,null,null,null,null,null,null,null,null,null,null,null,null,{"$f":"VLOOKUP(C122,Kode!A2:E219,5,FALSE)","v":{"$error":"#N/A"}},null,null,null,null,null,{"$error":"#DIV/0!"}]
[{"$f":"VLOOKUP(C123,Kode!A2:C219,2,FALSE)","v":{"$error":"#N/A"}},{"$f":"VLOOKUP(C123,Kode!A2:C219,3,FALSE)","v":{"$error":"#N/A"}},null,{"$f":"VLOOKUP(C123,Kode!A2:D219,4,FALSE)","v":{"$error":"#N/A"}},null,null,null,null,null,null,null,null,null,null,null,null,null,{"$f":"VLOOKUP(C123,Kode!A2:E219,5,FALSE)","v":{"$error":"#N/A"}},null,null,null,null,null,{"$error":"#DIV/0!"}]
[{"$f":"VLOOKUP(C124,Kode!A2:C219,2,FALSE)","v":{"$error":"#N/A"}},{"$f":"VLOOKUP(C124,Kode!A2:C219,3,FALSE)","v":{"$error":"#N/A"}},null,{"$f":"VLOOKUP(C124,Kode!A2:D219,4,FALSE)","v":{"$error":"#N/A"}},null,null,null,null,null,null,null,null,null,null,null,null,null,{"$f":"VLOOKUP(C124,Kode!A2:E219,5,FALSE)","v":{"$error":"#N/A"}},null,null,null,null,null,{"$error":"#DIV/0!"}]
[{"$f":"VLOOKUP(C125,Kode!A2:C219,2,FALSE)","v":{"$error":"#N/A"}},{"$f":"VLOOKUP(C125,Kode!A2:C219,3,FALSE)","v":{"$error":"#N/A"}},null,{"$f":"VLOOKUP(C125,Kode!A2:D219,4,FALSE)","v":{"$error":"#N/A"}},null,null,null,null,null,null,null,null,null,null,null,null,null,{"$f":"VLOOKUP(C125,Kode!A2:E219,5,FALSE)","v":{"$error":"#N/A"}},null,null,null,null,null,{"$error":"#DIV/0!"}]
[{"$f":"VLOOKUP(C126,Kode!A2:C219,2,FALSE)","v":{"$error":"#N/A"}},{"$f":"VLOOKUP(C126,Kode!A2:C219,3,FALSE)","v":{"$error":"#N/A"}},null,{"$f":"VLOOKUP(C126,Kode!A2:D219,4,FALSE)","v":{"$error":"#N/A"}},null,null,null,null,null,null,null,null,null,null,null,null,null,{"$f":"VLOOKUP(C126,Kode!A2:E219,5,FALSE)","v":{"$error":"#N/A"}},null,null,null,null,null,{"$error":"#DIV/0!"}]
[{"$f":"VLOOKUP(C127,Kode!A2:C219,2,FALSE)","v":{"$error":"#N/A"}},{"$f":"VLOOKUP(C127,Kode!A2:C219,3,FALSE)","v":{"$error":"#N/A"}},null,{"$f":"VLOOKUP(C127,Kode!A2:D219,4,FALSE)","v":{"$error":"#N/A"}},null,null,null,null,null,null,null,null,null,null,null,null,null,{"$f":"VLOOKUP(C127,Kode!A2:E219,5,FALSE)","v":{"$error":"#N/A"}},null,null,null,null,null,{"$error":"#DIV/0!"}]
[{"$f":"VLOOKUP(C128,Kode!A2:C219,2,FALSE)","v":{"$error":"#N/A"}},{"$f":"VLOOKUP(C128,Kode!A2:C219,3,FALSE)","v":{"$error":"#N/A"}},null,{"$f":"VLOOKUP(C128,Kode!A2:D219,4,FALSE)","v":{"$error":"#N/A"}},null,null,null,null,null,null,null,null,null,null,null,null,null,{"$f":"VLOOKUP(C128,Kode!A2:E219,5,FALSE)","v":{"$error":"#N/A"}},null,null,null,null,null,{"$error":"#DIV/0!"}]
[{"$f":"VLOOKUP(C129,Kode!A2:C219,2,FALSE)","v":{"$error":"#N/A"}},{"$f":"VLOOKUP(C129,Kode!A2:C219,3,FALSE)","v":{"$error":"#N/A"}},null,{"$f":"VLOOKUP(C129,Kode!A2:D219,4,FALSE)","v":{"$error":"#N/A"}},null,null,null,null,null,null,null,null,null,null,null,null,null,{"$f":"VLOOKUP(C129,Kode!A2:E219,5,FALSE)","v":{"$error":"#N/A"}},null,null,null,null,null,{"$error":"#DIV/0!"}]
[{"$f":"VLOOKUP(C130,Kode!A2:C219,2,FALSE)","v":{"$error":"#N/A"}},{"$f":"VLOOKUP(C130,Kode!A2:C219,3,FALSE)","v":{"$error":"#N/A"}},null,{"$f":"VLOOKUP(C130,Kode!A2:D219,4,FALSE)","v":{"$error":"#N/A"}},null,null,null,null,null,null,null,null,null,null,null,null,null,{"$f":"VLOOKUP(C130,Kode!A2:E219,5,FALSE)","v":{"$error":"#N/A"}},null,null,null,null,null,{"$error":"#DIV/0!"}]
[{"$f":"VLOOKUP(C131,Kode!A2:C219,2,FALSE)","v":{"$error":"#N/A"}},{"$f":"VLOOKUP(C131,Kode!A2:C219,3,FALSE)","v":{"$error":"#N/A"}},null,{"$f":"VLOOKUP(C131,Kode!A2:D219,4,FALSE)","v":{"$error":"#N/A"}},null,null,null,null,null,null,null,null,null,null,null,null,null,{"$f":"VLOOKUP(C131,Kode!A2:E219,5,FALSE)","v":{"$error":"#N/A"}},null,null,null,null,null,{"$f":"V131/T131*100","v":{"$error":"#DIV/0!"}}]
[{"$f":"VLOOKUP(C132,Kode!A2:C219,2,FALSE)","v":{"$error":"#N/A"}},{"$f":"VLOOKUP(C132,Kode!A2:C219,3,FALSE)","v":{"$error":"#N/A"}},null,{"$f":"VLOOKUP(C132,Kode!A2:D219,4,FALSE)","v":{"$error":"#N/A"}},null,null,null,null,null,null,null,null,null,null,null,null,null,{"$f":"VLOOKUP(C132,Kode!A2:E219,5,FALSE)","v":{"$error":"#N/A"}},null,null,null,null,null,{"$error":"#DIV/0!"}]
[{"$f":"VLOOKUP(C133,Kode!A2:C219,2,FALSE)","v":{"$error":"#N/A"}},{"$f":"VLOOKUP(C133,Kode!A2:C219,3,FALSE)","v":{"$error":"#N/A"}},null,{"$f":"VLOOKUP(C133,Kode!A2:D219,4,FALSE)","v":{"$error":"#N/A"}},null,null,null,null,null,null,null,null,null,null,null,null,null,{"$f":"VLOOKUP(C133,Kode!A2:E219,5,FALSE)","v":{"$error":"#N/A"}},null,null,null,null,null,{"$error":"#DIV/0!"}]
[{"$f":"VLOOKUP(C134,Kode!A2:C219,2,FALSE)","v":{"$error":"#N/A"}},{"$f":"VLOOKUP(C134,Kode!A2:C219,3,FALSE)","v":{"$error":"#N/A"}},null,{"$f":"VLOOKUP(C134,Kode!A2:D219,4,FALSE)","v":{"$error":"#N/A"}},null,null,null,null,null,null,null,null,null,null,null,null,null,{"$f":"VLOOKUP(C134,Kode!A2:E219,5,FALSE)","v":{"$error":"#N/A"}},null,null,null,null,null,{"$error":"#DIV/0!"}]
[{"$f":"VLOOKUP(C135,Kode!A2:C219,2,FALSE)","v":{"$error":"#N/A"}},{"$f":"VLOOKUP(C135,Kode!A2:C219,3,FALSE)","v":{"$error":"#N/A"}},null,{"$f":"VLOOKUP(C135,Kode!A2:D219,4,FALSE)","v":{"$error":"#N/A"}},null,null,null,null,null,null,null,null,null,null,null,null,null,{"$f":"VLOOKUP(C135,Kode!A2:E219,5,FALSE)","v":{"$error":"#N/A"}},null,null,null,null,null,{"$error":"#DIV/0!"}]
[{"$f":"VLOOKUP(C136,Kode!A2:C219,2,FALSE)","v":{"$error":"#N/A"}},{"$f":"VLOOKUP(C136,Kode!A2:C219,3,FALSE)","v":{"$error":"#N/A"}},null,{"$f":"VLOOKUP(C136,Kode!A2:D219,4,FALSE)","v":{"$error":"#N/A"}},null,null,null,null,null,null,null,null,null,null,null,null,null,{"$f":"VLOOKUP(C136,Kode!A2:E219,5,FALSE)","v":{"$error":"#N/A"}},null,null,null,null,null,{"$error":"#DIV/0!"}]
[{"$f":"VLOOKUP(C137,Kode!A2:C219,2,FALSE)","v":{"$error":"#N/A"}},{"$f":"VLOOKUP(C137,Kode!A2:C219,3,FALSE)","v":{"$error":"#N/A"}},null,{"$f":"VLOOKUP(C137,Kode!A2:D219,4,FALSE)","v":{"$error":"#N/A"}},null,null,null,null,null,null,null,null,null,null,null,null,null,{"$f":"VLOOKUP(C137,Kode!A2:E219,5,FALSE)","v":{"$error":"#N/A"}},null,null,null,null,null,{"$error":"#DIV/0!"}]
[{"$f":"VLOOKUP(C138,Kode!A2:C219,2,FALSE)","v":{"$error":"#N/A"}},{"$f":"VLOOKUP(C138,Kode!A2:C219,3,FALSE)","v":{"$error":"#N/A"}},null,{"$f":"VLOOKUP(C138,Kode!A2:D219,4,FALSE)","v":{"$error":"#N/A"}},null,null,null,null,null,null,null,null,null,null,null,null,null,{"$f":"VLOOKUP(C138,Kode!A2:E219,5,FALSE)","v":{"$error":"#N/A"}},null,null,null,null,null,{"$error":"#DIV/0!"}]
[{"$f":"VLOOKUP(C139,Kode!A2:C219,2,FALSE)","v":{"$error":"#N/A"}},{"$f":"VLOOKUP(C139,Kode!A2:C219,3,FALSE)","v":{"$error":"#N/A"}},null,{"$f":"VLOOKUP(C139,Kode!A2:D219,4,FALSE)","v":{"$error":"#N/A"}},null,null,null,null,null,null,null,null,null,null,null,null,null,{"$f":"VLOOKUP(C139,Kode!A2:E219,5,FALSE)","v":{"$error":"#N/A"}},null,null,null,null,null,{"$error":"#DIV/0!"}]
[{"$f":"VLOOKUP(C140,Kode!A2:C219,2,FALSE)","v":{"$error":"#N/A"}},{"$f":"VLOOKUP(C140,Kode!A2:C219,3,FALSE)","v":{"$error":"#N/A"}},null,{"$f":"VLOOKUP(C140,Kode!A2:D219,4,FALSE)","v":{"$error":"#N/A"}},null,null,null,null,null,null,null,null,null,null,null,null,null,{"$f":"VLOOKUP(C140,Kode!A2:E219,5,FALSE)","v":{"$error":"#N/A"}},null,null,null,null,null,{"$error":"#DIV/0!"}]
[{"$f":"VLOOKUP(C141,Kode!A2:C219,2,FALSE)","v":{"$error":"#N/A"}},{"$f":"VLOOKUP(C141,Kode!A2:C219,3,FALSE)","v":{"$error":"#N/A"}},null,{"$f":"VLOOKUP(C141,Kode!A2:D219,4,FALSE)","v":{"$error":"#N/A"}},null,null,null,null,null,null,null,null,null,null,null,null,null,{"$f":"VLOOKUP(C141,Kode!A2:E219,5,FALSE)","v":{"$error":"#N/A"}},null,null,null,null,null,{"$error":"#DIV/0!"}]
[{"$f":"VLOOKUP(C142,Kode!A2:C219,2,FALSE)","v":{"$error":"#N/A"}},{"$f":"VLOOKUP(C142,Kode!A2:C219,3,FALSE)","v":{"$error":"#N/A"}},null,{"$f":"VLOOKUP(C142,Kode!A2:D219,4,FALSE)","v":{"$error":"#N/A"}},null,null,null,null,null,null,null,null,null,null,null,null,null,{"$f":"VLOOKUP(C142,Kode!A2:E219,5,FALSE)","v":{"$error":"#N/A"}},null,null,null,null,null,{"$error":"#DIV/0!"}]
[{"$f":"VLOOKUP(C143,Kode!A2:C219,2,FALSE)","v":{"$error":"#N/A"}},{"$f":"VLOOKUP(C143,Kode!A2:C219,3,FALSE)","v":{"$error":"#N/A"}},null,{"$f":"VLOOKUP(C143,Kode!A2:D219,4,FALSE)","v":{"$error":"#N/A"}},null,null,null,null,null,null,null,null,null,null,null,null,null,{"$f":"VLOOKUP(C143,Kode!A2:E219,5,FALSE)","v":{"$error":"#N/A"}},null,null,null,null,null,{"$error":"#DIV/0!"}]
[{"$f":"VLOOKUP(C144,Kode!A2:C219,2,FALSE)","v":{"$error":"#N/A"}},{"$f":"VLOOKUP(C144,Kode!A2:C219,3,FALSE)","v":{"$error":"#N/A"}},null,{"$f":"VLOOKUP(C144,Kode!A2:D219,4,FALSE)","v":{"$error":"#N/A"}},null,null,null,null,null,null,null,null,null,null,null,null,null,{"$f":"VLOOKUP(C144,Kode!A2:E219,5,FALSE)","v":{"$error":"#N/A"}},null,null,null,null,null,{"$error":"#DIV/0!"}]
[{"$f":"VLOOKUP(C145,Kode!A2:C219,2,FALSE)","v":{"$error":"#N/A"}},{"$f":"VLOOKUP(C145,Kode!A2:C219,3,FALSE)","v":{"$error":"#N/A"}},null,{"$f":"VLOOKUP(C145,Kode!A2:D219,4,FALSE)","v":{"$error":"#N/A"}},null,null,null,null,null,null,null,null,null,null,null,null,null,{"$f":"VLOOKUP(C145,Kode!A2:E219,5,FALSE)","v":{"$error":"#N/A"}},null,null,null,null,null,{"$error":"#DIV/0!"}]
[{"$f":"VLOOKUP(C146,Kode!A2:C219,2,FALSE)","v":{"$error":"#N/A"}},{"$f":"VLOOKUP(C146,Kode!A2:C219,3,FALSE)","v":{"$error":"#N/A"}},null,{"$f":"VLOOKUP(C146,Kode!A2:D219,4,FALSE)","v":{"$error":"#N/A"}},null,null,null,null,null,null,null,null,null,null,null,null,null,{"$f":"VLOOKUP(C146,Kode!A2:E219,5,FALSE)","v":{"$error":"#N/A"}},null,null,null,null,null,{"$error":"#DIV/0!"}]
[{"$f":"VLOOKUP(C147,Kode!A2:C219,2,FALSE)","v":{"$error":"#N/A"}},{"$f":"VLOOKUP(C147,Kode!A2:C219,3,FALSE)","v":{"$error":"#N/A"}},null,{"$f":"VLOOKUP(C147,Kode!A2:D219,4,FALSE)","v":{"$error":"#N/A"}},null,null,null,null,null,null,null,null,null,null,null,null,null,{"$f":"VLOOKUP(C147,Kode!A2:E219,5,FALSE)","v":{"$error":"#N/A"}},null,null,null,null,null,{"$error":"#DIV/0!"}]
[{"$f":"VLOOKUP(C148,Kode!A2:C219,2,FALSE)","v":{"$error":"#N/A"}},{"$f":"VLOOKUP(C148,Kode!A2:C219,3,FALSE)","v":{"$error":"#N/A"}},null,{"$f":"VLOOKUP(C148,Kode!A2:D219,4,FALSE)","v":{"$error":"#N/A"}},null,null,null,null,null,null,null,null,null,null,null,null,null,{"$f":"VLOOKUP(C148,Kode!A2:E219,5,FALSE)","v":{"$error":"#N/A"}},null,null,null,null,null,{"$error":"#DIV/0!"}]
[{"$f":"VLOOKUP(C149,Kode!A2:C219,2,FALSE)","v":{"$error":"#N/A"}},{"$f":"VLOOKUP(C149,Kode!A2:C219,3,FALSE)","v":{"$error":"#N/A"}},null,{"$f":"VLOOKUP(C149,Kode!A2:D219,4,FALSE)","v":{"$error":"#N/A"}},null,null,null,null,null,null,null,null,null,null,null,null,null,{"$f":"VLOOKUP(C149,Kode!A2:E219,5,FALSE)","v":{"$error":"#N/A"}},null,null,null,null,null,{"$error":"#DIV/0!"}]
[{"$f":"VLOOKUP(C150,Kode!A2:C219,2,FALSE)","v":{"$error":"#N/A"}},{"$f":"VLOOKUP(C150,Kode!A2:C219,3,FALSE)","v":{"$error":"#N/A"}},null,{"$f":"VLOOKUP(C150,Kode!A2:D219,4,FALSE)","v":{"$error":"#N/A"}},null,null,null,null,null,null,null,null,null,null,null,null,null,{"$f":"VLOOKUP(C150,Kode!A2:E219,5,FALSE)","v":{"$error":"#N/A"}},null,null,null,null,null,{"$error":"#DIV/0!"}]
[{"$f":"VLOOKUP(C151,Kode!A2:C219,2,FALSE)","v":{"$error":"#N/A"}},{"$f":"VLOOKUP(C151,Kode!A2:C219,3,FALSE)","v":{"$error":"#N/A"}},null,{"$f":"VLOOKUP(C151,Kode!A2:D219,4,FALSE)","v":{"$error":"#N/A"}},null,null,null,null,null,null,null,null,null,null,null,null,null,{"$f":"VLOOKUP(C151,Kode!A2:E219,5,FALSE)","v":{"$error":"#N/A"}},null,null,null,null,null,{"$error":"#DIV/0!"}]
[{"$f":"VLOOKUP(C152,Kode!A2:C219,2,FALSE)","v":{"$error":"#N/A"}},{"$f":"VLOOKUP(C152,Kode!A2:C219,3,FALSE)","v":{"$error":"#N/A"}},null,{"$f":"VLOOKUP(C152,Kode!A2:D219,4,FALSE)","v":{"$error":"#N/A"}},null,null,null,null,null,null,null,null,null,null,null,null,null,{"$f":"VLOOKUP(C152,Kode!A2:E219,5,FALSE)","v":{"$error":"#N/A"}},null,null,null,null,null,{"$error":"#DIV/0!"}]
[{"$f":"VLOOKUP(C153,Kode!A2:C219,2,FALSE)","v":{"$error":"#N/A"}},{"$f":"VLOOKUP(C153,Kode!A2:C219,3,FALSE)","v":{"$error":"#N/A"}},null,{"$f":"VLOOKUP(C153,Kode!A2:D219,4,FALSE)","v":{"$error":"#N/A"}},null,null,null,null,null,null,null,null,null,null,null,null,null,{"$f":"VLOOKUP(C153,Kode!A2:E219,5,FALSE)","v":{"$error":"#N/A"}},null,null,null,null,null,{"$error":"#DIV/0!"}]
[{"$f":"VLOOKUP(C154,Kode!A2:C219,2,FALSE)","v":{"$error":"#N/A"}},{"$f":"VLOOKUP(C154,Kode!A2:C219,3,FALSE)","v":{"$error":"#N/A"}},null,{"$f":"VLOOKUP(C154,Kode!A2:D219,4,FALSE)","v":{"$error":"#N/A"}},null,null,null,null,null,null,null,null,null,null,null,null,null,{"$f":"VLOOKUP(C154,Kode!A2:E219,5,FALSE)","v":{"$error":"#N/A"}},null,null,null,null,null,{"$error":"#DIV/0!"}]
[{"$f":"VLOOKUP(C155,Kode!A2:C219,2,FALSE)","v":{"$error":"#N/A"}},{"$f":"VLOOKUP(C155,Kode!A2:C219,3,FALSE)","v":{"$error":"#N/A"}},null,{"$f":"VLOOKUP(C155,Kode!A2:D219,4,FALSE)","v":{"$error":"#N/A"}},null,null,null,null,null,null,null,null,null,null,null,null,null,{"$f":"VLOOKUP(C155,Kode!A2:E219,5,FALSE)","v":{"$error":"#N/A"}},null,null,null,null,null,{"$error":"#DIV/0!"}]
[{"$f":"VLOOKUP(C156,Kode!A2:C219,2,FALSE)","v":{"$error":"#N/A"}},{"$f":"VLOOKUP(C156,Kode!A2:C219,3,FALSE)","v":{"$error":"#N/A"}},null,{"$f":"VLOOKUP(C156,Kode!A2:D219,4,FALSE)","v":{"$error":"#N/A"}},null,null,null,null,null,null,null,null,null,null,null,null,null,{"$f":"VLOOKUP(C156,Kode!A2:E219,5,FALSE)","v":{"$error":"#N/A"}},null,null,null,null,null,{"$error":"#DIV/0!"}]
[{"$f":"VLOOKUP(C157,Kode!A2:C219,2,FALSE)","v":{"$error":"#N/A"}},{"$f":"VLOOKUP(C157,Kode!A2:C219,3,FALSE)","v":{"$error":"#N/A"}},null,{"$f":"VLOOKUP(C157,Kode!A2:D219,4,FALSE)","v":{"$error":"#N/A"}},null,null,null,null,null,null,null,null,null,null,null,null,null,{"$f":"VLOOKUP(C157,Kode!A2:E219,5,FALSE)","v":{"$error":"#N/A"}},null,null,null,null,null,{"$error":"#DIV/0!"}]
[{"$f":"VLOOKUP(C158,Kode!A2:C219,2,FALSE)","v":{"$error":"#N/A"}},{"$f":"VLOOKUP(C158,Kode!A2:C219,3,FALSE)","v":{"$error":"#N/A"}},null,{"$f":"VLOOKUP(C158,Kode!A2:D219,4,FALSE)","v":{"$error":"#N/A"}},null,null,null,null,null,null,null,null,null,null,null,null,null,{"$f":"VLOOKUP(C158,Kode!A2:E219,5,FALSE)","v":{"$error":"#N/A"}},null,null,null,null,null,{"$error":"#DIV/0!"}]
[{"$f":"VLOOKUP(C159,Kode!A2:C219,2,FALSE)","v":{"$error":"#N/A"}},{"$f":"VLOOKUP(C159,Kode!A2:C219,3,FALSE)","v":{"$error":"#N/A"}},null,{"$f":"VLOOKUP(C159,Kode!A2:D219,4,FALSE)","v":{"$error":"#N/A"}},null,null,null,null,null,null,null,null,null,null,null,null,null,{"$f":"VLOOKUP(C159,Kode!A2:E219,5,FALSE)","v":{"$error":"#N/A"}},null,null,null,null,null,{"$error":"#DIV/0!"}]
[{"$f":"VLOOKUP(C160,Kode!A2:C219,2,FALSE)","v":{"$error":"#N/A"}},{"$f":"VLOOKUP(C160,Kode!A2:C219,3,FALSE)","v":{"$error":"#N/A"}},null,{"$f":"VLOOKUP(C160,Kode!A2:D219,4,FALSE)","v":{"$error":"#N/A"}},null,null,null,null,null,null,null,null,null,null,null,null,null,{"$f":"VLOOKUP(C160,Kode!A2:E219,5,FALSE)","v":{"$error":"#N/A"}},null,null,null,null,null,{"$error":"#DIV/0!"}]
[{"$f":"VLOOKUP(C161,Kode!A2:C219,2,FALSE)","v":{"$error":"#N/A"}},{"$f":"VLOOKUP(C161,Kode!A2:C219,3,FALSE)","v":{"$error":"#N/A"}},null,{"$f":"VLOOKUP(C161,Kode!A2:D219,4,FALSE)","v":{"$error":"#N/A"}},null,null,null,null,null,null,null,null,null,null,null,null,null,{"$f":"VLOOKUP(C161,Kode!A2:E219,5,FALSE)","v":{"$error":"#N/A"}},null,null,null,null,null,{"$error":"#DIV/0!"}]
[{"$f":"VLOOKUP(C162,Kode!A2:C219,2,FALSE)","v":{"$error":"#N/A"}},{"$f":"VLOOKUP(C162,Kode!A2:C219,3,FALSE)","v":{"$error":"#N/A"}},null,{"$f":"VLOOKUP(C162,Kode!A2:D219,4,FALSE)","v":{"$error":"#N/A"}},null,null,null,null,null,null,null,null,null,null,null,null,null,{"$f":"VLOOKUP(C162,Kode!A2:E219,5,FALSE)","v":{"$error":"#N/A"}},null,null,null,null,null,{"$error":"#DIV/0!"}]
[{"$f":"VLOOKUP(C163,Kode!A2:C219,2,FALSE)","v":{"$error":"#N/A"}},{"$f":"VLOOKUP(C163,Kode!A2:C219,3,FALSE)","v":{"$error":"#N/A"}},null,{"$f":"VLOOKUP(C163,Kode!A2:D219,4,FALSE)","v":{"$error":"#N/A"}},null,null,null,null,null,null,null,null,null,null,null,null,null,{"$f":"VLOOKUP(C163,Kode!A2:E219,5,FALSE)","v":{"$error":"#N/A"}},null,null,null,null,null,{"$error":"#DIV/0!"}]
[{"$f":"VLOOKUP(C164,Kode!A2:C219,2,FALSE)","v":{"$error":"#N/A"}},{"$f":"VLOOKUP(C164,Kode!A2:C219,3,FALSE)","v":{"$error":"#N/A"}},null,{"$f":"VLOOKUP(C164,Kode!A2:D219,4,FALSE)","v":{"$error":"#N/A"}},null,null,null,null,null,null,null,null,null,null,null,null,null,{"$f":"VLOOKUP(C164,Kode!A2:E219,5,FALSE)","v":{"$error":"#N/A"}},null,null,null,null,null,{"$error":"#DIV/0!"}]
[{"$f":"VLOOKUP(C165,Kode!A2:C219,2,FALSE)","v":{"$error":"#N/A"}},{"$f":"VLOOKUP(C165,Kode!A2:C219,3,FALSE)","v":{"$error":"#N/A"}},null,{"$f":"VLOOKUP(C165,Kode!A2:D219,4,FALSE)","v":{"$error":"#N/A"}},null,null,null,null,null,null,null,null,null,null,null,null,null,{"$f":"VLOOKUP(C165,Kode!A2:E219,5,FALSE)","v":{"$error":"#N/A"}},null,null,null,null,null,{"$error":"#DIV/0!"}]
[{"$f":"VLOOKUP(C166,Kode!A2:C219,2,FALSE)","v":{"$error":"#N/A"}},{"$f":"VLOOKUP(C166,Kode!A2:C219,3,FALSE)","v":{"$error":"#N/A"}},null,{"$f":"VLOOKUP(C166,Kode!A2:D219,4,FALSE)","v":{"$error":"#N/A"}},null,null,null,null,null,null,null,null,null,null,null,null,null,{"$f":"VLOOKUP(C166,Kode!A2:E219,5,FALSE)","v":{"$error":"#N/A"}},null,null,null,null,null,{"$error":"#DIV/0!"}]
[{"$f":"VLOOKUP(C167,Kode!A2:C219,2,FALSE)","v":{"$error":"#N/A"}},{"$f":"VLOOKUP(C167,Kode!A2:C219,3,FALSE)","v":{"$error":"#N/A"}},null,{"$f":"VLOOKUP(C167,Kode!A2:D219,4,FALSE)","v":{"$error":"#N/A"}},null,null,null,null,null,null,null,null,null,null,null,null,null,{"$f":"VLOOKUP(C167,Kode!A2:E219,5,FALSE)","v":{"$error":"#N/A"}},null,null,null,null,null,{"$error":"#DIV/0!"}]
[{"$f":"VLOOKUP(C168,Kode!A2:C219,2,FALSE)","v":{"$error":"#N/A"}},{"$f":"VLOOKUP(C168,Kode!A2:C219,3,FALSE)","v":{"$error":"#N/A"}},null,{"$f":"VLOOKUP(C168,Kode!A2:D219,4,FALSE)","v":{"$error":"#N/A"}},null,null,null,null,null,null,null,null,null,null,null,null,null,{"$f":"VLOOKUP(C168,Kode!A2:E219,5,FALSE)","v":{"$error":"#N/A"}},null,null,null,null,null,{"$error":"#DIV/0!"}]
[{"$f":"VLOOKUP(C169,Kode!A2:C219,2,FALSE)","v":{"$error":"#N/A"}},{"$f":"VLOOKUP(C169,Kode!A2:C219,3,FALSE)","v":{"$error":"#N/A"}},null,{"$f":"VLOOKUP(C169,Kode!A2:D219,4,FALSE)","v":{"$error":"#N/A"}},null,null,null,null,null,null,null,null,null,null,null,null,null,{"$f":"VLOOKUP(C169,Kode!A2:E219,5,FALSE)","v":{"$error":"#N/A"}},null,null,null,null,null,{"$error":"#DIV/0!"}]
[{"$f":"VLOOKUP(C170,Kode!A2:C219,2,FALSE)","v":{"$error":"#N/A"}},{"$f":"VLOOKUP(C170,Kode!A2:C219,3,FALSE)","v":{"$error":"#N/A"}},null,{"$f":"VLOOKUP(C170,Kode!A2:D219,4,FALSE)","v":{"$error":"#N/A"}},null,null,null,null,null,null,null,null,null,null,null,null,null,{"$f":"VLOOKUP(C170,Kode!A2:E219,5,FALSE)","v":{"$error":"#N/A"}},null,null,null,null,null,{"$error":"#DIV/0!"}]
[{"$f":"VLOOKUP(C171,Kode!A2:C219,2,FALSE)","v":{"$error":"#N/A"}},{"$f":"VLOOKUP(C171,Kode!A2:C219,3,FALSE)","v":{"$error":"#N/A"}},null,{"$f":"VLOOKUP(C171,Kode!A2:D219,4,FALSE)","v":{"$error":"#N/A"}},null,null,null,null,null,null,null,null,null,null,null,null,null,{"$f":"VLOOKUP(C171,Kode!A2:E219,5,FALSE)","v":{"$error":"#N/A"}},null,null,null,null,null,{"$error":"#DIV/0!"}]
[{"$f":"VLOOKUP(C172,Kode!A2:C219,2,FALSE)","v":{"$error":"#N/A"}},{"$f":"VLOOKUP(C172,Kode!A2:C219,3,FALSE)","v":{"$error":"#N/A"}},null,{"$f":"VLOOKUP(C172,Kode!A2:D219,4,FALSE)","v":{"$error":"#N/A"}},null,null,null,null,null,null,null,null,null,null,null,null,null,{"$f":"VLOOKUP(C172,Kode!A2:E219,5,FALSE)","v":{"$error":"#N/A"}},null,null,null,null,null,{"$error":"#DIV/0!"}]
[{"$f":"VLOOKUP(C173,Kode!A2:C219,2,FALSE)","v":{"$error":"#N/A"}},{"$f":"VLOOKUP(C173,Kode!A2:C219,3,FALSE)","v":{"$error":"#N/A"}},null,{"$f":"VLOOKUP(C173,Kode!A2:D219,4,FALSE)","v":{"$error":"#N/A"}},null,null,null,null,null,null,null,null,null,null,null,null,null,{"$f":"VLOOKUP(C173,Kode!A2:E219,5,FALSE)","v":{"$error":"#N/A"}},null,null,null,null,null,{"$error":"#DIV/0!"}]
[{"$f":"VLOOKUP(C174,Kode!A2:C219,2,FALSE)","v":{"$error":"#N/A"}},{"$f":"VLOOKUP(C174,Kode!A2:C219,3,FALSE)","v":{"$error":"#N/A"}},null,{"$f":"VLOOKUP(C174,Kode!A2:D219,4,FALSE)","v":{"$error":"#N/A"}},null,null,null,null,null,null,null,null,null,null,null,null,null,{"$f":"VLOOKUP(C174,Kode!A2:E219,5,FALSE)","v":{"$error":"#N/A"}},null,null,null,null,null,{"$error":"#DIV/0!"}]
[{"$f":"VLOOKUP(C175,Kode!A2:C219,2,FALSE)","v":{"$error":"#N/A"}},{"$f":"VLOOKUP(C175,Kode!A2:C219,3,FALSE)","v":{"$error":"#N/A"}},null,{"$f":"VLOOKUP(C175,Kode!A2:D219,4,FALSE)","v":{"$error":"#N/A"}},null,null,null,null,null,null,null,null,null,null,null,null,null,{"$f":"VLOOKUP(C175,Kode!A2:E219,5,FALSE)","v":{"$error":"#N/A"}},null,null,null,null,null,{"$error":"#DIV/0!"}]
[{"$f":"VLOOKUP(C176,Kode!A2:C219,2,FALSE)","v":{"$error":"#N/A"}},{"$f":"VLOOKUP(C176,Kode!A2:C219,3,FALSE)","v":{"$error":"#N/A"}},null,{"$f":"VLOOKUP(C176,Kode!A2:D219,4,FALSE)","v":{"$error":"#N/A"}},null,null,null,null,null,null,null,null,null,null,null,null,null,{"$f":"VLOOKUP(C176,Kode!A2:E219,5,FALSE)","v":{"$error":"#N/A"}},null,null,null,null,null,{"$error":"#DIV/0!"}]
[{"$f":"VLOOKUP(C177,Kode!A2:C219,2,FALSE)","v":{"$error":"#N/A"}},{"$f":"VLOOKUP(C177,Kode!A2:C219,3,FALSE)","v":{"$error":"#N/A"}},null,{"$f":"VLOOKUP(C177,Kode!A2:D219,4,FALSE)","v":{"$error":"#N/A"}},null,null,null,null,null,null,null,null,null,null,null,null,null,{"$f":"VLOOKUP(C177,Kode!A2:E219,5,FALSE)","v":{"$error":"#N/A"}},null,null,null,null,null,{"$error":"#DIV/0!"}]
[{"$f":"VLOOKUP(C178,Kode!A2:C219,2,FALSE)","v":{"$error":"#N/A"}},{"$f":"VLOOKUP(C178,Kode!A2:C219,3,FALSE)","v":{"$error":"#N/A"}},null,{"$f":"VLOOKUP(C178,Kode!A2:D219,4,FALSE)","v":{"$error":"#N/A"}},null,null,null,null,null,null,null,null,null,null,null,null,null,{"$f":"VLOOKUP(C178,Kode!A2:E219,5,FALSE)","v":{"$error":"#N/A"}},null,null,null,null,null,{"$error":"#DIV/0!"}]
[{"$f":"VLOOKUP(C179,Kode!A2:C219,2,FALSE)","v":{"$error":"#N/A"}},{"$f":"VLOOKUP(C179,Kode!A2:C219,3,FALSE)","v":{"$error":"#N/A"}},null,{"$f":"VLOOKUP(C179,Kode!A2:D219,4,FALSE)","v":{"$error":"#N/A"}},null,null,null,null,null,null,null,null,null,null,null,null,null,{"$f":"VLOOKUP(C179,Kode!A2:E219,5,FALSE)","v":{"$error":"#N/A"}},null,null,null,null,null,{"$error":"#DIV/0!"}]
[{"$f":"VLOOKUP(C180,Kode!A2:C219,2,FALSE)","v":{"$error":"#N/A"}},{"$f":"VLOOKUP(C180,Kode!A2:C219,3,FALSE)","v":{"$error":"#N/A"}},null,{"$f":"VLOOKUP(C180,Kode!A2:D219,4,FALSE)","v":{"$error":"#N/A"}},null,null,null,null,null,null,null,null,null,null,null,null,null,{"$f":"VLOOKUP(C180,Kode!A2:E219,5,FALSE)","v":{"$error":"#N/A"}},null,null,null,null,null,{"$error":"#DIV/0!"}]
[{"$f":"VLOOKUP(C181,Kode!A2:C219,2,FALSE)","v":{"$error":"#N/A"}},{"$f":"VLOOKUP(C181,Kode!A2:C219,3,FALSE)","v":{"$error":"#N/A"}},null,{"$f":"VLOOKUP(C181,Kode!A2:D219,4,FALSE)","v":{"$error":"#N/A"}},null,null,null,null,null,null,null,null,null,null,null,null,null,{"$f":"VLOOKUP(C181,Kode!A2:E219,5,FALSE)","v":{"$error":"#N/A"}},null,null,null,null,null,{"$error":"#DIV/0!"}]
[{"$f":"VLOOKUP(C182,Kode!A2:C219,2,FALSE)","v":{"$error":"#N/A"}},{"$f":"VLOOKUP(C182,Kode!A2:C219,3,FALSE)","v":{"$error":"#N/A"}},null,{"$f":"VLOOKUP(C182,Kode!A2:D219,4,FALSE)","v":{"$error":"#N/A"}},null,null,null,null,null,null,null,null,null,null,null,null,null,{"$f":"VLOOKUP(C182,Kode!A2:E219,5,FALSE)","v":{"$error":"#N/A"}},null,null,null,null,null,{"$error":"#DIV/0!"}]
[{"$f":"VLOOKUP(C183,Kode!A2:C219,2,FALSE)","v":{"$error":"#N/A"}},{"$f":"VLOOKUP(C183,Kode!A2:C219,3,FALSE)","v":{"$error":"#N/A"}},null,{"$f":"VLOOKUP(C183,Kode!A2:D219,4,FALSE)","v":{"$error":"#N/A"}},null,null,null,null,null,null,null,null,null,null,null,null,null,{"$f":"VLOOKUP(C183,Kode!A2:E219,5,FALSE)","v":{"$error":"#N/A"}},null,null,null,null,null,{"$error":"#DIV/0!"}]
[{"$f":"VLOOKUP(C184,Kode!A2:C219,2,FALSE)","v":{"$error":"#N/A"}},{"$f":"VLOOKUP(C184,Kode!A2:C219,3,FALSE)","v":{"$error":"#N/A"}},null,{"$f":"VLOOKUP(C184,Kode!A2:D219,4,FALSE)","v":{"$error":"#N/A"}},null,null,null,null,null,null,null,null,null,null,null,null,null,{"$f":"VLOOKUP(C184,Kode!A2:E219,5,FALSE)","v":{"$error":"#N/A"}},null,null,null,null,null,{"$error":"#DIV/0!"}]
[{"$f":"VLOOKUP(C185,Kode!A2:C219,2,FALSE)","v":{"$error":"#N/A"}},{"$f":"VLOOKUP(C185,Kode!A2:C219,3,FALSE)","v":{"$error":"#N/A"}},null,{"$f":"VLOOKUP(C185,Kode!A2:D219,4,FALSE)","v":{"$error":"#N/A"}},null,null,null,null,null,null,null,null,null,null,null,null,null,{"$f":"VLOOKUP(C185,Kode!A2:E219,5,FALSE)","v":{"$error":"#N/A"}},null,null,null,null,null,{"$error":"#DIV/0!"}]
[{"$f":"VLOOKUP(C186,Kode!A2:C219,2,FALSE)","v":{"$error":"#N/A"}},{"$f":"VLOOKUP(C186,Kode!A2:C219,3,FALSE)","v":{"$error":"#N/A"}},null,{"$f":"VLOOKUP(C186,Kode!A2:D219,4,FALSE)","v":{"$error":"#N/A"}},null,null,null,null,null,null,null,null,null,null,null,null,null,{"$f":"VLOOKUP(C186,Kode!A2:E219,5,FALSE)","v":{"$error":"#N/A"}},null,null,null,null,null,{"$error":"#DIV/0!"}]
[{"$f":"VLOOKUP(C187,Kode!A2:C219,2,FALSE)","v":{"$error":"#N/A"}},{"$f":"VLOOKUP(C187,Kode!A2:C219,3,FALSE)","v":{"$error":"#N/A"}},null,{"$f":"VLOOKUP(C187,Kode!A2:D219,4,FALSE)","v":{"$error":"#N/A"}},null,null,null,null,null,null,null,null,null,null,null,null,null,{"$f":"VLOOKUP(C187,Kode!A2:E219,5,FALSE)","v":{"$error":"#N/A"}},null,null,null,null,null,{"$error":"#DIV/0!"}]
[{"$f":"VLOOKUP(C188,Kode!A2:C219,2,FALSE)","v":{"$error":"#N/A"}},{"$f":"VLOOKUP(C188,Kode!A2:C219,3,FALSE)","v":{"$error":"#N/A"}},null,{"$f":"VLOOKUP(C188,Kode!A2:D219,4,FALSE)","v":{"$error":"#N/A"}},null,null,null,null,null,null,null,null,null,null,null,null,null,{"$f":"VLOOKUP(C188,Kode!A2:E219,5,FALSE)","v":{"$error":"#N/A"}},null,null,null,null,null,{"$error":"#DIV/0!"}]
[{"$f":"VLOOKUP(C189,Kode!A2:C219,2,FALSE)","v":{"$error":"#N/A"}},{"$f":"VLOOKUP(C189,Kode!A2:C219,3,FALSE)","v":{"$error":"#N/A"}},null,{"$f":"VLOOKUP(C189,Kode!A2:D219,4,FALSE)","v":{"$error":"#N/A"}},null,null,null,null,null,null,null,null,null,null,null,null,null,{"$f":"VLOOKUP(C189,Kode!A2:E219,5,FALSE)","v":{"$error":"#N/A"}},null,null,null,null,null,{"$error":"#DIV/0!"}]
[{"$f":"VLOOKUP(C190,Kode!A2:C219,2,FALSE)","v":{"$error":"#N/A"}},{"$f":"VLOOKUP(C190,Kode!A2:C219,3,FALSE)","v":{"$error":"#N/A"}},null,{"$f":"VLOOKUP(C190,Kode!A2:D219,4,FALSE)","v":{"$error":"#N/A"}},null,null,null,null,null,null,null,null,null,null,null,null,null,{"$f":"VLOOKUP(C190,Kode!A2:E219,5,FALSE)","v":{"$error":"#N/A"}},null,null,null,null,null,{"$error":"#DIV/0!"}]
[{"$f":"VLOOKUP(C191,Kode!A2:C219,2,FALSE)","v":{"$error":"#N/A"}},{"$f":"VLOOKUP(C191,Kode!A2:C219,3,FALSE)","v":{"$error":"#N/A"}},null,{"$f":"VLOOKUP(C191,Kode!A2:D219,4,FALSE)","v":{"$error":"#N/A"}},null,null,null,null,null,null,null,null,null,null,null,null,null,{"$f":"VLOOKUP(C191,Kode!A2:E219,5,FALSE)","v":{"$error":"#N/A"}},null,null,null,null,null,{"$error":"#DIV/0!"}]
[{"$f":"VLOOKUP(C192,Kode!A2:C219,2,FALSE)","v":{"$error":"#N/A"}},{"$f":"VLOOKUP(C192,Kode!A2:C219,3,FALSE)","v":{"$error":"#N/A"}},null,{"$f":"VLOOKUP(C192,Kode!A2:D219,4,FALSE)","v":{"$error":"#N/A"}},null,null,null,null,null,null,null,null,null,null,null,null,null,{"$f":"VLOOKUP(C192,Kode!A2:E219,5,FALSE)","v":{"$error":"#N/A"}},null,null,null,null,null,{"$error":"#DIV/0!"}]
[{"$f":"VLOOKUP(C193,Kode!A2:C219,2,FALSE)","v":{"$error":"#N/A"}},{"$f":"VLOOKUP(C193,Kode!A2:C219,3,FALSE)","v":{"$error":"#N/A"}},null,{"$f":"VLOOKUP(C193,Kode!A2:D219,4,FALSE)","v":{"$error":"#N/A"}},null,null,null,null,null,null,null,null,null,null,null,null,null,{"$f":"VLOOKUP(C193,Kode!A2:E219,5,FALSE)","v":{"$error":"#N/A"}},null,null,null,null,null,{"$error":"#DIV/0!"}]
[{"$f":"VLOOKUP(C194,Kode!A2:C219,2,FALSE)","v":{"$error":"#N/A"}},{"$f":"VLOOKUP(C194,Kode!A2:C219,3,FALSE)","v":{"$error":"#N/A"}},null,{"$f":"VLOOKUP(C194,Kode!A2:D219,4,FALSE)","v":{"$error":"#N/A"}},null,null,null,null,null,null,null,null,null,null,null,null,null,{"$f":"VLOOKUP(C194,Kode!A2:E219,5,FALSE)","v":{"$error":"#N/A"}},null,null,null,null,null,{"$error":"#DIV/0!"}]
[{"$f":"VLOOKUP(C195,Kode!A2:C219,2,FALSE)","v":{"$error":"#N/A"}},{"$f":"VLOOKUP(C195,Kode!A2:C219,3,FALSE)","v":{"$error":"#N/A"}},null,{"$f":"VLOOKUP(C195,Kode!A2:D219,4,FALSE)","v":{"$error":"#N/A"}},null,null,null,null,null,null,null,null,null,null,null,null,null,{"$f":"VLOOKUP(C195,Kode!A2:E219,5,FALSE)","v":{"$error":"#N/A"}},null,null,null,null,null,{"$f":"V195/T195*100","v":{"$error":"#DIV/0!"}}]
[{"$f":"VLOOKUP(C196,Kode!A2:C219,2,FALSE)","v":{"$error":"#N/A"}},{"$f":"VLOOKUP(C196,Kode!A2:C219,3,FALSE)","v":{"$error":"#N/A"}},null,{"$f":"VLOOKUP(C196,Kode!A2:D219,4,FALSE)","v":{"$error":"#N/A"}},null,null,null,null,null,null,null,null,null,null,null,null,null,{"$f":"VLOOKUP(C196,Kode!A2:E219,5,FALSE)","v":{"$error":"#N/A"}},null,null,null,null,null,{"$error":"#DIV/0!"}]
[{"$f":"VLOOKUP(C197,Kode!A2:C219,2,FALSE)","v":{"$error":"#N/A"}},{"$f":"VLOOKUP(C197,Kode!A2:C219,3,FALSE)","v":{"$error":"#N/A"}},null,{"$f":"VLOOKUP(C197,Kode!A2:D219,4,FALSE)","v":{"$error":"#N/A"}},null,null,null,null,null,null,null,null,null,null,null,null,null,{"$f":"VLOOKUP(C197,Kode!A2:E219,5,FALSE)","v":{"$error":"#N/A"}},null,null,null,null,null,{"$error":"#DIV/0!"}]
[{"$f":"VLOOKUP(C198,Kode!A2:C219,2,FALSE)","v":{"$error":"#N/A"}},{"$f":"VLOOKUP(C198,Kode!A2:C219,3,FALSE)","v":{"$error":"#N/A"}},null,{"$f":"VLOOKUP(C198,Kode!A2:D219,4,FALSE)","v":{"$error":"#N/A"}},null,null,null,null,null,null,null,null,null,null,null,null,null,{"$f":"VLOOKUP(C198,Kode!A2:E219,5,FALSE)","v":{"$error":"#N/A"}},null,null,null,null,null,{"$error":"#DIV/0!"}]
[{"$f":"VLOOKUP(C199,Kode!A2:C219,2,FALSE)","v":{"$error":"#N/A"}},{"$f":"VLOOKUP(C199,Kode!A2:C219,3,FALSE)","v":{"$error":"#N/A"}},null,{"$f":"VLOOKUP(C199,Kode!A2:D219,4,FALSE)","v":{"$error":"#N/A"}},null,null,null,null,null,null,null,null,null,null,null,null,null,{"$f":"VLOOKUP(C199,Kode!A2:E219,5,FALSE)","v":{"$error":"#N/A"}},null,null,null,null,null,{"$error":"#DIV/0!"}]
[{"$f":"VLOOKUP(C200,Kode!A2:C219,2,FALSE)","v":{"$error":"#N/A"}},{"$f":"VLOOKUP(C200,Kode!A2:C219,3,FALSE)","v":{"$error":"#N/A"}},null,{"$f":"VLOOKUP(C200,Kode!A2:D219,4,FALSE)","v":{"$error":"#N/A"}},null,null,null,null,null,null,null,null,null,null,null,null,null,{"$f":"VLOOKUP(C200,Kode!A2:E219,5,FALSE)","v":{"$error":"#N/A"}},null,null,null,null,null,{"$error":"#DIV/0!"}]
[{"$f":"VLOOKUP(C201,Kode!A2:C219,2,FALSE)","v":{"$error":"#N/A"}},{"$f":"VLOOKUP(C201,Kode!A2:C219,3,FALSE)","v":{"$error":"#N/A"}},null,{"$f":"VLOOKUP(C201,Kode!A2:D219,4,FALSE)","v":{"$error":"#N/A"}},null,null,null,null,null,null,null,null,null,null,null,null,null,{"$f":"VLOOKUP(C201,Kode!A2:E219,5,FALSE)","v":{"$error":"#N/A"}},null,null,null,null,null,{"$error":"#DIV/0!"}]
[{"$f":"VLOOKUP(C202,Kode!A2:C219,2,FALSE)","v":{"$error":"#N/A"}},{"$f":"VLOOKUP(C202,Kode!A2:C219,3,FALSE)","v":{"$error":"#N/A"}},null,{"$f":"VLOOKUP(C202,Kode!A2:D219,4,FALSE)","v":{"$error":"#N/A"}},null,null,null,null,null,null,null,null,null,null,null,null,null,{"$f":"VLOOKUP(C202,Kode!A2:E219,5,FALSE)","v":{"$error":"#N/A"}},null,null,null,null,null,{"$error":"#DIV/0!"}]
[{"$f":"VLOOKUP(C203,Kode!A2:C219,2,FALSE)","v":{"$error":"#N/A"}},{"$f":"VLOOKUP(C203,Kode!A2:C219,3,FALSE)","v":{"$error":"#N/A"}},null,{"$f":"VLOOKUP(C203,Kode!A2:D219,4,FALSE)","v":{"$error":"#N/A"}},null,null,null,null,null,null,null,null,null,null,null,null,null,{"$f":"VLOOKUP(C203,Kode!A2:E219,5,FALSE)","v":{"$error":"#N/A"}},null,null,null,null,null,{"$error":"#DIV/0!"}]
[{"$f":"VLOOKUP(C204,Kode!A2:C219,2,FALSE)","v":{"$error":"#N/A"}},{"$f":"VLOOKUP(C204,Kode!A2:C219,3,FALSE)","v":{"$error":"#N/A"}},null,{"$f":"VLOOKUP(C204,Kode!A2:D219,4,FALSE)","v":{"$error":"#N/A"}},null,null,null,null,null,null,null,null,null,null,null,null,null,{"$f":"VLOOKUP(C204,Kode!A2:E219,5,FALSE)","v":{"$error":"#N/A"}},null,null,null,null,null,{"$error":"#DIV/0!"}]
[{"$f":"VLOOKUP(C205,Kode!A2:C219,2,FALSE)","v":{"$error":"#N/A"}},{"$f":"VLOOKUP(C205,Kode!A2:C219,3,FALSE)","v":{"$error":"#N/A"}},null,{"$f":"VLOOKUP(C205,Kode!A2:D219,4,FALSE)","v":{"$error":"#N/A"}},null,null,null,null,null,null,null,null,null,null,null,null,null,{"$f":"VLOOKUP(C205,Kode!A2:E219,5,FALSE)","v":{"$error":"#N/A"}},null,null,null,null,null,{"$error":"#DIV/0!"}]

{"sheet":"Kode","index":1,"n_rows":435,"n_cols":11,"rows_kept":435,"cut":false,"hidden":true,"merged":[]}
["Št. Priglasitve","Naziv dajalca pomoči","MŠ dajalca pomoči","Naziv sheme pomoči/ime prejemnika individualne ad hoc pomoči","Pravna podlaga sheme pomoči","Šifra občine","Šifra instrumenta","Šifra namena","Opis ukrepa","Investicija","Člen uredbe"]
["K-M001-2399253-2017","Ministrstvo za kmetijstvo, gozdarstvo in prehrano",2399253000,"Finančna pomoč ob nepredvidljivih dogodkih v kmetijstvu za leto 2017","Uredba o pomoči ob nepredvidljivih dogodkih v kmetijstvu",null,1,"5.0.04.1","a","da",14]
["K-M001-2399253-2020","Ministrstvo za kmetijstvo, gozdarstvo in prehrano",2399253000,"Finančna pomoč ob nepredvidljivih dogodkih v kmetijstvu za leto 2020 in 2021","Uredba o pomoči ob nepredvidljivih dogodkih v kmetijstvu",null,5,"5.0.04.2","b","ne",15]
["K-M001-5163846-2021","Javni zavod Triglavski narodni park",5163846000,"Pomoč za ohranjanje in razvoj kmetijstva in podeželja na območju Triglavskega narodnega parka","Pravilnik o pomoči za ohranjanje in razvoj kmetijstva in podeželja na območju Triglavskega narodnega parka",null,10,"5.0.04.4","c",null,16]
["K-M001-5628849-2016","Javni sklad malega gospodarstva Goriške ",5628849000,"Finančne spodbude Javnega sklada malega gospodarstva Goriške v kmetijskem sektorju za obdobje 2016-2020 - de minimis","Splošni pogoji poslovanja Javnega sklada malega gospodarstva Goriške za kmetijstvo v programskem obdobju 2015–2020",null,20,"5.0.04.5","d",null,17]
["K-M001-5729963-2018","Sklad kmetijskih zemljišč in gozdov Republike Slovenije",5729963000,"Odpis zakupnine zaradi pozebe v letu 2017","Zakon o ukrepih za odpravo posledic pozebe v kmetijski proizvodnji med 21. in 22. aprilom 2017 (ZUOPPKP) ",null,25,"5.0.07.0","e",null,21]
["K-M001-5729963-2019","Sklad kmetijskih zemljišč in gozdov Republike Slovenije",5729963000,"Odpis zakupnine za leto 2017 zaradi suše v letu 2017","Pravilnik o zakupu kmetij in kmetijskih zemljišč (z vključenimi spremembami in dopolnitvami)",null,28,"5.0.10.0","f",null,24]
["K-M002-2399253-2017","Ministrstvo za kmetijstvo, gozdarstvo in prehrano",2399253000,"Finančna podpora za izvajanje ukrepa odpravljanja zaraščanja na kmetijskih zemljiščih","Uredba o izvajanju ukrepa odpravljanje zaraščanja na kmetijskih zemljiščih",null,40,"5.0.11.2","g",null,28]
["K-M002-2399253-2018","Ministrstvo za kmetijstvo, gozdarstvo in prehrano",2399253000,"Finančna pomoč ob nepredvidljivih dogodkih v kmetijstvu za leto 2018","Uredba o pomoči ob nepredvidljivih dogodkih v kmetijstvu",null,43,"5.0.11.3","h",null,29]
["K-M002-2399253-2019","Ministrstvo za kmetijstvo, gozdarstvo in prehrano",2399253000,"Finančna pomoč ob nepredvidljivih dogodkih v kmetijstvu za leto 2019","Uredba o pomoči ob nepredvidljivih dogodkih v kmetijstvu",null,48,"5.0.11.4",null,null,38]
["K-M002-2399253-2021","Ministrstvo za kmetijstvo, gozdarstvo in prehrano",2399253000,"Oprostitev plačila nadomestila za vzdrževanje namakalnih sistemov namakalnega razvoda Vogršček lastnikom in zakupnikom kmetijskih zemljišč na območju namakalnega razvoda Vogršček v letu 2021","Zakon o ukrepih za odpravo posledic pozebe v kmetijski proizvodnji med 5. in 9. aprilom 2021",null,50,"5.0.11.5",null,null,43]
["K-M002-5880297-2020","Občina Radenci",5880297000,"Pomoč čebelarstvu v Občini Radenci","Pravilnik o ohranjanju in spodbujanju razvoja kmetijstva in podeželja v Občini Radenci za programsko obdobje 2015 – 2020",null,70,"5.0.12.0"]
["K-M002-5883075-2016","Občina Gornji Petrovci ",5883075000,"De minimis pomoč za ohranjanje oz. povečevanje rodovitnosti tal v Občini Gornji Petrovci za programsko obdobje 2016-2020","Pravilnik o ohranjanju in spodbujanju razvoja kmetijstva in podeželja v Občini Gornji Petrovci za programsko obdobje 2016–2020",null,75,"5.0.13.0"]
["K-M003-1332171-2019","Občina Veržej",1332171000,"De minimis pomoč za ohranjanje oziroma povečevanje rodovitnosti tal v Občini Veržej za programsko obdobje 2019–2020","Pravilnik o ohranjanju in spodbujanju razvoja kmetijstva in podeželja v Občini Veržej za programsko obdobje 2019–2020",null,null,"5.0.14.1"]
["K-M003-2399253-2018","Ministrstvo za kmetijstvo, gozdarstvo in prehrano",2399253000,"Enkratna pomoč de minimis za nadomestilo zaradi izjemnih okoliščin v zvezi z odločitvijo arbitražnega sodišča o meji med Slovenijo in Hrvaško","11. člen Zakona o ureditvi določenih vprašanj zaradi končne razsodbe arbitražnega sodišča na podlagi Arbitražnega sporazuma med Vlado Republike Slovenije in Vlado Republike Hrvaške",null,null,"5.0.14.2"]
["K-M003-5163846-2020","Javni zavod Triglavski narodni park",5163846000,"Pomoč za ohranjanje in razvoj kmetijstva in podeželja na območju Triglavskega narodnega parka","Pravilnik o pomoči za ohranjanje in razvoj kmetijstva in podeželja na območju Triglavskega narodnega parka",null,null,"5.0.14.3"]
["K-M003-5729963-2021","Sklad kmetijskih zemljišč in gozdov Republike Slovenije",5729963000,"Odpis zakupnin za leto 2021 zaradi pozebe v letu 2021","Pravilnik o zakupu kmetij in kmetijskih zemljišč",null,null,"5.0.14.4"]
["K-M003-5823889-2017","Zavod za regionalni razvoj madžarske narodnosti Lendava",5823889000,"Ohranjanje in spodbujanje razvoja kmetijstva na območjih občin, v katerih živi avtohtona madžarska narodna skupnost za programsko obdobje 2017 - 2020","Pravilnik o ohranjanju in spodbujanju razvoja kmetijstva na območjih občin, v katerih živi avtohtona madžarska narodna skupnost za programsko obdobje 2017-2020",null,null,"5.0.15.0"]
["K-M003-5883377-2015","Občina Zavrč",5883377000,"Pomoč za ohranjanje in razvoj kmetijstva ter podeželja v občini Zavrč","Pravilnik o dodeljevanju pomoči za razvoj podeželja v Občini Zavrč za obdobje 2015 - 2020\n",null,null,"5.1.01.0"]
["K-M003-5883512-2020","Občina Postojna",5883512000,"Pomoč de minimis za subvencioniranje komunalnega prispevka za gradnjo objektov, namenjenih primarni kmetijski proizvodnji, v Občini Postojna","Pravilnik o ohranjanju in spodbujanju razvoja kmetijstva in podeželja v Občini Postojna za programsko obdobje 2015–2020",null,null,"5.1.02.0"]
["K-M003-5883610-2016","Občina Mežica",5883610000,"Podpore za ohranjanje in razvoj kmetijstva in podeželja v občini Mežica za programsko obdobje 2016 - 2020 - de minimis","Pravilnik o ohranjanju in spodbujanju razvoja kmetijstva in podeželja v Občini Mežica za programsko obdobje 2016 – 2020",null,null,"5.1.03.0"]
["K-M003-5883687-2019","Občina Ormož",5883687000,"Olajšave za primarne kmetijske proizvajalce pri plačilu komunalnega prispevka za nestanovanjske stavbe v Občini Ormož za obdobje 2019–2027","Pravilnik o podrobnejših kriterijih in merilih za olajšave plačila komunalnega prispevka za nestanovanjske kmetijske stavbe v Občini Ormož (Uradni vestnik Občine Ormož, št. 18/18)",null,null,"5.1.04.0"]
["K-M004-1358278-2015","Občina Podlehnik",1358278000,"Pomoči za ohranjanje in razvoj kmetijstva ter podeželja v občini Podlehnik","Pravilnik o dodeljevanju pomoči za ohranjanje in razvoj kmetijstva ter podeželja v Občini Podlehnik za obdobje 2014 - 2020",null,null,"5.1.05.0"]
["K-M004-2399253-2021","Ministrstvo za kmetijstvo, gozdarstvo in prehrano",2399253000,"Finančna pomoč za nadomestilo škode v čebelarstvu v letu 2021","Odlok o finančni pomoči za nadomestilo škode v čebelarstvu v letu 2021",null,null,"5.1.06.0"]
["K-M004-5874092-2019","Občina Ljutomer",5874092000,"De minimis pomoč za ohranjanje oziroma povečanje rodovitnosti tal v Občini Ljutomer","Pravilnik o ohranjanju in spodbujanju razvoja kmetijstva in podeželja v Občini Ljutomer",null,null,"5.2.01.0"]
["K-M004-5874637-2017","Občina Vodice",5874637000,"Olajšave plačila komunalnega prispevka za nestanovanjske kmetijske stavbe v Občini Vodice","Pravilnik o ohranjanju in spodbujanju razvoja kmetijstva in podeželja v Občini Vodice za programsko obdobje 2015–2020",null,null,"5.2.02.0"]
["K-M004-5883164-2016","Občina Moravske Toplice",5883164000,"De minimis pomoč za  ohranjanje  oz. povečevanje rodovitnosti tal v Občini Moravske toplice  za programsko obdobje 2016-2020","Pravilnik o ohranjanju in spodbujanju razvoja kmetijstva in podeželja v Občini Moravske Toplice za programsko obdobje 2016–2020",null,null,"5.7.00.0"]
["K-M004-5883687-2020","Občina Ormož",5883687000,"Subvencioniranje obrestne mere in stroškov odobritve kratkoročnega kredita za nakup repromateriala in financiranje tekočih stroškov primarne kmetijske proizvodnje","Pravilnik o ohranjanju in spodbujanju razvoja kmetijstva in podeželja v občini Ormož  za programsko obdobje 2015-2020",null,null,"5.8.01.0"]
["K-M004-5883903-2018","Mestna občina Slovenj Gradec",5883903000,"Ukrep 10: Podpora za tekoče poslovanje v kmetijski proizvodnji","Pravilnik o ohranjanju in spodbujanju razvoja kmetijstva in podeželja v Mestni občini Slovenj Gradec za programsko obdobje 2015–2020",null,null,"5.8.02.0"]
["K-M005-1332147-2018","Občina Križevci",1332147000,"De minimis pomoč za ohranjanje oziroma povečevanje rodovitnosti tal v Občini Križevci za programsko obdobje 2018–2020","Pravilnik o ohranjanju in spodbujanju razvoja kmetijstva in podeželja v Občini Križevci za programsko obdobje 2018–2020",null,null,"5.8.03.0"]
["K-M005-1357816-2016","Občina Mirna peč",1357816000,"De minimis pomoč v kmetijstvu - olajšava plačila komunalnega prispevka","Pravilnik o podrobnejših kriterijih in merilih za olajšave plačila komunalnega prispevka",null,null,"5.8.04.0"]
["K-M005-1684884-2020","Zavod Republike Slovenije za varstvo narave",1684884000,"Spodbujanje ukrepov za izboljšanje stanja travniške morske čebulice (Scilla litardierei) na kmetijskih zemljiščih na območju Nature 2000 Notranjski trikotnik za programsko obdobje 2019–2021","Pravilnik o spodbujanju ukrepov za izboljšanje stanja travniške morske čebulice (Scilla litardierei) na kmetijskih zemljiščih na območju Nature 2000 Notranjski trikotnik za programsko obdobje 2019–2021",null,null,"5.8.05.0"]
["K-M005-2242770-2015","Občina Cirkulane",2242770000,"Pomoči za ohranjanje in razvoj kmetijstva ter podeželja v občini Cirkulane","Pravilnik o dodeljevanju pomoči za ohranjanje in razvoj kmetijstva ter podeželja v Občini Cirkulane za obdobje 2014-2020",null,null,"5.8.06.0"]
["K-M005-2242770-2021","Občina Cirkulane",2242770000,"Dodeljevanje sredstev za ohranjanje in razvoj kmetijstva ter podeželja v Občini Cirkulane","Pravilnik o dodeljevanju pomoči za ohranjanje in razvoj kmetijstva ter podeželja v Občini Cirkulane v obdobju od 2021 do 2022 ",null,null,"5.8.07.1"]
["K-M005-2399253-2019","Ministrstvo za kmetijstvo, gozdarstvo in prehrano",2399253000,"Finančna pomoč za nadomestilo škode v čebelarstvu v letu 2019","Odlok o finančni pomoči za nadomestilo škode v čebelarstvu v letu 2019",null,null,"5.8.07.2"]
["K-M005-5883261-2017","Občina Gorenja vas - Poljane",5883261000,"Olajšave plačila komunalnega prispevka za gradnjo nestanovanjskih kmetijskih stavb","Pravilnik o podrobnejših kriterijih in merilih za olajšave plačila komunalnega prispevka",null,null,"5.8.08.0"]
["K-M006-1357441-2015","Občina Hajdina",1357441000,"Pomoči za ohranjanje in razvoj kmetijstva ter podeželja v občini Hajdina","Pravilnik o dodeljevanju pomoči za ohranjanje in razvoj kmetijstva ter podeželja v Občini Hajdina za obdobje 2014-2020",null,null,"5.8.09.0"]
["K-M006-1358383-2020","Občina Žužemberk",1358383000,"Individualna ad hoc pomoč de minimis – Dejan Hočevar","Sklep občinskega sveta Občine Žužemberk z dne 18. 6. 2020",null,null,"5.8.10.0"]
["K-M006-2399245-2017","Ministrstvo za gospodarski razvoj in tehnologijo",2399245000,"Pomoč za tekoče poslovanje – de minimis primarni kmetijski proizvodnji","Zakon o spodbujanju skladnega regionalnega razvoja (ZSRR-2)",null,null,"5.8.11.0"]
["K-M006-2399253-2018","Ministrstvo za kmetijstvo, gozdarstvo in prehrano",2399253000,"Podpora za rejo odbranih in potrjenih plemenjakov ogroženih slovenskih avtohtonih pasem domačih živali in njihovih mater za leto 2018","Sklep ministra za kmetijstvo, gozdarstvo in prehrano št. 33206-3/2017/7 z dne 30.3.2018 o sprejetju Programa varstva biotske raznovrstnosti v živinoreji za leto 2018"]
["K-M006-2399253-2021","Ministrstvo za kmetijstvo, gozdarstvo in prehrano",2399253000,"Finančna pomoč pri reji prašičev v letu 2021","Odlok o finančni pomoči pri reji prašičev v letu 2021"]
["K-M006-5880505-2019","Občina Moravče",5880505000,"Podpore de minimis za ohranjanje in spodbujanje razvoja kmetijstva in podeželja v Občini Moravče za programsko obdobje 2019–2020","Pravilnik o ohranjanju in spodbujanju razvoja kmetijstva in podeželja v občini Moravče za programsko obdobje 2015-2020 "]
["K-M006-5883393-2016","Občina Borovnica",5883393000,"De minimis pomoč delovanju društev dejavnih na področju primarne kmetijske proizvodnje za programsko obdobje 2016-2020","Pravilnik o ohranjanju in spodbujanju razvoja kmetijstva in podeželja v občini Borovnica za programsko obdobje 2016 – 2020"]
["K-M007-2399253-2017","Ministrstvo za kmetijstvo, gozdarstvo in prehrano",2399253000,"Finančna pomoč za izpad krme v živinorejski proizvodnji in na kmetijskem gospodarstvu zaradi nepredvidljivega škodnega dogodka","Odlok o finančni pomoči za izpad krme v živinorejski proizvodnji na kmetijskem gospodarstvu"]
["K-M007-2399253-2019","Ministrstvo za kmetijstvo, gozdarstvo in prehrano",2399253000,"Pomoč de minimis za stroške uničenja rastlin zaradi viroidne zakrnelosti hmelja","Program izvedbe ukrepov za preprečevanje širjenja in zatiranje viroidnih zakrnelosti hmelja za obdobje 2019–2021"]
["K-M007-2399253-2020","Ministrstvo za kmetijstvo, gozdarstvo in prehrano",2399253000,"Finančna pomoč zaradi izpada pridelka v primarni kmetijski proizvodnji v letu 2019","Odlok o finančni pomoči zaradi izpada pridelka v primarni kmetijski proizvodnji zaradi neugodnih vremenskih razmer v letu 2019"]
["K-M007-2399253-2021","Ministrstvo za kmetijstvo, gozdarstvo in prehrano",2399253000,"Podpora za rejo odbranih in potrjenih plemenjakov ogroženih slovenskih avtohtonih pasem domačih živali za leto 2021","Program varstva biotske raznovrstnosti v slovenski živinoreji za leto 2021"]
["K-M007-5883300-2015","Občina Duplek",5883300000,"Pomoči de minimis za ohranjanje in razvoj kmetijstva ter podeželja v občini Duplek","Pravilnik o dodeljevanju pomoči za ohranjanje in razvoj kmetijstva ter podeželja v Občini Duplek za obdobje 2015 - 2020"]
["K-M008-1357492-2015","Občina Markovci",1357492000,"Dodeljevanje pomoči za ohranjanje in razvoj kmetijstva ter podeželja v Občini Markovci","Pravilnik o dodeljevanju pomoči za ohranjanje in razvoj kmetijstva ter podeželja v Občini Markovci za obdobje 2015 – 2020"]
["K-M008-2399253-2020","Ministrstvo za kmetijstvo, gozdarstvo in prehrano",2399253000,"Podpora za rejo odbranih in potrjenih plemenjakov ogroženih slovenskih avtohtonih pasem domačih živali in njihovih mater za leto 2020","Program varstva biotske raznovrstnosti v slovenski živinoreji za leto 2020"]
["K-M008-5874726-2019","Občina Črenšovci",5874726000,"Podpora ohranjanju oziroma povečevanju rodovitnosti tal","Pravilnik o ohranjanju in spodbujanju razvoja kmetijstva in podeželja v Občini Črenšovci"]
["K-M008-5883148-2021","Občina Železniki",5883148000,"Dodeljevanje pomoči de minimis za delno oprostitev plačila komunalnega prispevka","Odlok o podlagah za odmero komunalnega prispevka za obstoječo komunalno opremo na območju Občine Železniki "]
["K-M008-5883237-2016","Občina Puconci",5883237000,"De minimis pomoč za  ohranjanje  oz. povečevanje rodovitnosti tal v občini Puconci za programsko obdobje 2016-20200","Pravilnik o ohranjanju in spodbujanju razvoja kmetijstva in podeželja v Občini Puconci za programsko obdobje 2016–2020"]
["K-M008-5883300-2017","Občina Duplek",5883300000,"Olajšave pri plačilu komunalnega prispevka v občini Duplek","Odlok o komunalnem prispevku v Občini Duplek"]
["K-M009-1365673-2016","Občina Grad",1365673000,"De minimis pomoč za  ohranjanje  oz. povečevanje rodovitnosti tal v občini Grad za programsko obdobje 2016-2020","Pravilnik o ohranjanju in spodbujanju razvoja kmetijstva in podeželja v Občini Grad za programsko obdobje 2016–2020"]
["K-M009-2399253-2017","Ministrstvo za kmetijstvo, gozdarstvo in prehrano",2399253000,"Podpora za rejo odbranih in potrjenih plemenjakov ogroženih slovenskih avtohtonih pasem domačih živali in njihovih mater za leto 2017","Sklep št. 33206-6/2016/8 z dne 16.3.2017 o sprejetju Programa varstva biotske raznovrstnosti v živinoreji za leto 2017"]
["K-M009-2399253-2019","Ministrstvo za kmetijstvo, gozdarstvo in prehrano",2399253000,"Podpora za rejo odbranih in potrjenih plemenjakov ogroženih slovenskih avtohtonih pasem domačih živali in njihovih mater za leto 2019","Sklep ministrice za kmetijstvo, gozdarstvo in prehrano št. 33206-6/2018/13 s 1. 7. 2019 o Programu varstva biotske raznovrstnosti v slovenski živinoreji za leto 2019"]
["K-M009-2399253-2020","Ministrstvo za kmetijstvo, gozdarstvo in prehrano",2399253000,"Pomoč de minimis v prireji govejega mesa v letu 2020","Odlok o finančni pomoči v prireji govejega mesa za obdobje od 1. junija 2020 do 30. septembra 2020"]
["K-M009-5880254-2021","Občina Črnomelj",5880254000,"Shema pomoči de minimis za delno oprostitev plačila komunalnega prispevka","Pravilnik o merilih za delno oprostitev pri odmeri in plačilu komunalnega prispevka za območje Občine Črnomelj"]
["K-M009-5882966-2015","Občina Destrnik",5882966000,"Dodeljevanje pomoči za ohranjanje in razvoj kmetijstva ter podeželja v Občini Destrnik","Pravilnika o dodeljevanju pomoči za ohranjanje in razvoj kmetijstva ter podeželja v občini Destrnik za obdobje 2015-2020"]
["K-M010-5874785-2015","Občina Velike Lašče",5874785000,"Pomoči de minimis za ohranjanje in spodbujanje razvoja kmetijstva in podeželja v Občini Velike Lašče","Pravilnik o spremembah in dopolnitvah Pravilnika o ohranjanju in spodbujanju razvoja kmetijstva in podeželja v Občini Velike Lašče za programsko obdobje 2015 – 2020 (Ur. glasilo Občine Velike Lašče, št. 4/15 in 5/15)\n"]
["K-M010-5883148-2016","Občina Železniki",5883148000,"Dodeljevanje pomoči de minimis za delno oprostitev plačila komunalnega prispevka","Odlok o programu opremljanja in merilih za odmero komunalnega prispevka v Občini Železniki"]
["K-M010-5883687-2020","Občina Ormož",5883687000,"Podpora za tekoče poslovanje v primarni kmetijski proizvodnji","Pravilnik o ohranjanju in spodbujanju razvoja kmetijstva in podeželja v občini Ormož  za programsko obdobje 2015-2020"]
["K-M010-5886252-2017","Občina Dobrepolje",5886252000,"Pomoč čebelarstvu","Pravilnik o ohranjanju in spodbujanju razvoja kmetijstva in podeželja v Občini Dobrepolje za programsko obdobje 2015–2020"]
["K-M011-2399253-2017","Ministrstvo za kmetijstvo, gozdarstvo in prehrano",2399253000,"Finančna pomoč za nadomestilo škode v čebelarstvu v letu 2017","Odlok o finančni pomoči za nadomestilo škode v čebelarstvu v letu 2017"]
["K-M011-2482789-2015","Ministrstvo za okolje in prostor",2482789000,"Nadomestilo za zmanjšanje dohodka iz kmetijske dejavnosti zaradi prilagoditve ukrepom vodovarstvenega režima - de minimis","Uredba o načinu izplačevanja in merilih za izračun nadomestila za zmanjšanje dohodka iz kmetijske dejavnosti zaradi prilagoditve ukrepom vodovarstvenega režima"]
["K-M011-5883954-2020","Občina Mislinja",5883954000,"Ukrep 10: Podpora za tekoče poslovanje v kmetijski proizvodnji","Pravilnik o ohranjanju in spodbujanju razvoja kmetijstva in podeželja v občini Mislinja za programsko obdobje 2015 – 2020 "]
["K-M012-5883016-2015","Občina Beltinci",5883016000,"De minimis pomoč za  ohranjanje  oz. povečevanje rodovitnosti tal v občini Beltinci  za programsko obdobje 2015-2020","Pravilnik o ohranjanju in spodbujanju razvoja kmetijstva in podeželja v Občini Beltinci za programsko obdobje 2015–2020"]
["K-M012-5940117-2017","Slovenski regionalno razvojni sklad",5940117000,"Pomoč de minimis primarni kmetijski proizvodnji","Splošni pogoji poslovanja Slovenskega regionalno razvojnega sklada"]
["K-M013-5883334-2017","Občina Šentjernej",5883334000,"Pomoč de minimis primarnih kmetijskim proizvajalcem v Občini Šentjernej","Pravilnik o ohranjanju in spodbujanju razvoja kmetijstva in podeželja v Občini Šentjernej za programsko obdobje 2017–2020"]
["K-M013-5883750-2015","Občina Juršinci",5883750000,"Dodeljevanje de minimis pomoči za ohranjanje in razvoj kmetijstva v Občini Juršinci v obdobju 2015 - 2020","Pravilnik o dodeljevanju pomoči za ohranjanje in razvoj kmetijstva ter podeželja v Občini Juršinci za obdobje 2015-2020"]
["K-M014-5881773-2016","Mestna občina Nova Gorica",5881773000,"Pomoč vinogradništvu v Mestni občini Nova Gorica","Odlok o pomoči vinogradništvu v Mestni občini Nova Gorica za programsko obdobje 2016–2020"]
["K-M014-5883121-2015","Občina Kuzma",5883121000,"De minimis pomoči v primarni proizvodnji kmetijskih proizvodov v občini Kuzma 2015-2020","Pravilnik o ohranjanju in spodbujanju razvoja kmetijstva in podeželja v Občini Kuzma za programsko obdobje 2015-2020"]
["K-M015-5874998-2015","Občina Dobrova-Polhov Gradec",5874998000,"Pomoč de minimis za  ohranjanje in spodbujanje razvoja kmetijstva v občini Dobrova-Polhov Gradec za programsko obdobje 2015-2020","Pravilnik o ohranjanju in spodbujanju razvoja kmetijstva in podeželja v Občini Dobrova - Polhov Gradec za programsko obdobje 2015–2020"]
["K-M016-5883067-2016","Občina Tišina",5883067000,"De minimis pomoč za ohranjanje oz. povečevanje rodovitnosti tal v občini Tišina za programsko obdobje 2016-2020","Pravilnik o ohranjanju in spodbujanju razvoja kmetijstva in podeželja v Občini Tišina za programsko obdobje 2015–2020"]
["K-M017-5874637-2015","Občina Vodice",5874637000,"Ohranjanje in spodbujanje razvoja kmetijstva in podeželja v občini Vodice - de minimis","Pravilnik o ohranjanju in spodbujanju razvoja kmetijstva in podeželja v občini Vodice za programsko obdobje 2015 -2020"]
["K-M017-5883113-2016","Občina Šalovci",5883113000,"De minimis pomoč za ohranjanje oz. povečevanje rodovitnosti tal v občini Šalovci za programsko obdobje 2016-2020","Pravilnik o ohranjanju in spodbujanju razvoja kmetijstva in podeželja v Občini Šalovci za programsko obdobje 2016–2020"]
["K-M018-1357999-2015","Občina Žetale",1357999000,"Dodeljevanje de minimis pomoči za ohranjanje in razvoj kmetijstva v Občini Žetale","Pravilnik o dodeljevanju pomoči za ohranjanje in razvoj kmetijstva ter podeželja v Občini Žetale za obdobje 2015 – 2020\n"]
["K-M019-1365789-2015","Občina Cankova",1365789000,"De minimis pomoč za  ohranjanje  oz. povečevanje rodovitnosti tal v občini Cankova za programsko obdobje 2015-2020","Pravilnik o ohranjanju in spodbujanju razvoja kmetijstva in podeželja v Občini Cankova za programsko obdobje 2015–2020 "]
["R-M001-2399245-2017","Ministrstvo za gospodarski razvoj in tehnologijo",2399245000,"Pomoč za tekoče poslovanje – de minimis ribiškemu sektorju","Uredba o dodeljevanju regionalnih državnih pomoči ter načinu uveljavljanja regionalne spodbude za zaposlovanje ter davčnih olajšav za zaposlovanje in investiranje in Pravilnik o kriterijih za spremembo pogodbenih določil in o odpisu obveznosti dolžnikov Slovenskega regionalno razvojnega sklada"]
["R-M001-2399253-2018","Ministrstvo za kmetijstvo, gozdarstvo in prehrano",2399253000,"Nadomestilo zaradi izpada dohodka zaradi oviranega gospodarskega ribolova v morju, ki je pod suverenostjo Republike Slovenije","Zakon o ureditvi določenih vprašanj zaradi končne razsodbe arbitražnega sodišča na podlagi Arbitražnega sporazuma med Vlado Republike Slovenije in Vlado Republike Hrvaške"]
["R-M001-2399253-2019","Ministrstvo za kmetijstvo, gozdarstvo in prehrano",2399253000,"Sofinanciranje zavarovalnih premij v ribištvu za obdobje 2019–2020","Uredba o sofinanciranju zavarovalnih premij za zavarovanje primarne kmetijske proizvodnje in ribištva"]
["R-M001-2399253-2021","Ministrstvo za kmetijstvo, gozdarstvo in prehrano",2399253000,"Sofinanciranje zavarovalnih premij v ribištvu za leti 2021 in 2022","Uredba o sofinanciranju zavarovalnih premij za zavarovanje primarne kmetijske proizvodnje in ribištva"]
["R-M002-2399253-2018","Ministrstvo za kmetijstvo, gozdarstvo in prehrano",2399253000,"Pomoč de minimis za odpravo materialne škode na ribolovnem orodju oziroma plovilu, ki jo je povzročilo tuje plovilo","Zakon o ureditvi določenih vprašanj zaradi končne razsodbe arbitražnega sodišča na podlagi Arbitražnega sporazuma med Vlado Republike Slovenije in Vlado Republike Hrvaške"]
["R-M002-5874190-2015","Občina Izola",5874190000,"Intervencije v ribištvu","Pravilnik o finančnih intervencijah za ohranjanje in razvoj ribištva ter pridobivanja hrane iz morja v občini Izola"]
["R-M004-5883873-2015","Občina Piran",5883873000,"Intervencije v ribištvu","Pravilnik o finančnih intervencijah za ohranjanje in razvoj ribištva ter pridobivanja hrane iz morja v Občini Piran za programsko obdobje 2015–2020"]
[]
[]
[]
[]
[]
[]
[]
[]
[]
[]
[]
[]
[]
[]
[]
[]
[]
[]
[]
[]
[]
[]
[]
[]
[]
[]
[]
[]
[]
[]
[]
[]
[]
[]
[]
[]
[]
[]
[]
[]
[]
[]
[]
[]
[]
[]
[]
[]
[]
[]
[]
[]
[]
[]
[]
[]
[]
[]
[]
[]
[]
[]
[]
[]
[]
[]
[]
[]
[]
[]
[]
[]
[]
[]
[]
[]
[]
[]
[]
[]
[]
[]
[]
[]
[]
[]
[]
[]
[]
[]
[]
[]
[]
[]
[]
[]
[]
[]
[]
[]
[]
[]
[]
[]
[]
[]
[]
[]
[]
[]
[]
[]
[]
[]
[]
[]
[]
[]
[]
[]
[]
[]
[]
[]
[]
[]
[]
[]
[]
[]
[]
[]
[]
[]
[]
[]
[]
[null,null,null,null,null,"001"]
[null,null,null,null,null,"002"]
[null,null,null,null,null,"003"]
[null,null,null,null,null,"004"]
[null,null,null,null,null,"005"]
[null,null,null,null,null,"006"]
[null,null,null,null,null,"007"]
[null,null,null,null,null,"008"]
[null,null,null,null,null,"009"]
[null,null,null,null,null,"010"]
[null,null,null,null,null,"011"]
[null,null,null,null,null,"012"]
[null,null,null,null,null,"013"]
[null,null,null,null,null,"014"]
[null,null,null,null,null,"015"]
[null,null,null,null,null,"016"]
[null,null,null,null,null,"017"]
[null,null,null,null,null,"018"]
[null,null,null,null,null,"019"]
[null,null,null,null,null,"020"]
[null,null,null,null,null,"021"]
[null,null,null,null,null,"022"]
[null,null,null,null,null,"023"]
[null,null,null,null,null,"024"]
[null,null,null,null,null,"025"]
[null,null,null,null,null,"026"]
[null,null,null,null,null,"027"]
[null,null,null,null,null,"028"]
[null,null,null,null,null,"029"]
[null,null,null,null,null,"030"]
[null,null,null,null,null,"031"]
[null,null,null,null,null,"032"]
[null,null,null,null,null,"033"]
[null,null,null,null,null,"034"]
[null,null,null,null,null,"035"]
[null,null,null,null,null,"036"]
[null,null,null,null,null,"037"]
[null,null,null,null,null,"038"]
[null,null,null,null,null,"039"]
[null,null,null,null,null,"040"]
[null,null,null,null,null,"041"]
[null,null,null,null,null,"042"]
[null,null,null,null,null,"043"]
[null,null,null,null,null,"044"]
[null,null,null,null,null,"045"]
[null,null,null,null,null,"046"]
[null,null,null,null,null,"047"]
[null,null,null,null,null,"048"]
[null,null,null,null,null,"049"]
[null,null,null,null,null,"050"]
[null,null,null,null,null,"051"]
[null,null,null,null,null,"052"]
[null,null,null,null,null,"053"]
[null,null,null,null,null,"054"]
[null,null,null,null,null,"055"]
[null,null,null,null,null,"056"]
[null,null,null,null,null,"057"]
[null,null,null,null,null,"058"]
[null,null,null,null,null,"059"]
[null,null,null,null,null,"060"]
[null,null,null,null,null,"061"]
[null,null,null,null,null,"062"]
[null,null,null,null,null,"063"]
[null,null,null,null,null,"064"]
[null,null,null,null,null,"065"]
[null,null,null,null,null,"066"]
[null,null,null,null,null,"067"]
[null,null,null,null,null,"068"]
[null,null,null,null,null,"069"]
[null,null,null,null,null,"070"]
[null,null,null,null,null,"071"]
[null,null,null,null,null,"072"]
[null,null,null,null,null,"073"]
[null,null,null,null,null,"074"]
[null,null,null,null,null,"075"]
[null,null,null,null,null,"076"]
[null,null,null,null,null,"077"]
[null,null,null,null,null,"078"]
[null,null,null,null,null,"079"]
[null,null,null,null,null,"080"]
[null,null,null,null,null,"081"]
[null,null,null,null,null,"082"]
[null,null,null,null,null,"083"]
[null,null,null,null,null,"084"]
[null,null,null,null,null,"085"]
[null,null,null,null,null,"086"]
[null,null,null,null,null,"087"]
[null,null,null,null,null,"088"]
[null,null,null,null,null,"089"]
[null,null,null,null,null,"090"]
[null,null,null,null,null,"091"]
[null,null,null,null,null,"092"]
[null,null,null,null,null,"093"]
[null,null,null,null,null,"094"]
[null,null,null,null,null,"095"]
[null,null,null,null,null,"096"]
[null,null,null,null,null,"097"]
[null,null,null,null,null,"098"]
[null,null,null,null,null,"099"]
[null,null,null,null,null,"100"]
[null,null,null,null,null,"101"]
[null,null,null,null,null,"102"]
[null,null,null,null,null,"103"]
[null,null,null,null,null,"104"]
[null,null,null,null,null,"105"]
[null,null,null,null,null,"106"]
[null,null,null,null,null,"107"]
[null,null,null,null,null,"108"]
[null,null,null,null,null,"109"]
[null,null,null,null,null,"110"]
[null,null,null,null,null,"111"]
[null,null,null,null,null,"112"]
[null,null,null,null,null,"113"]
[null,null,null,null,null,"114"]
[null,null,null,null,null,"115"]
[null,null,null,null,null,"116"]
[null,null,null,null,null,"117"]
[null,null,null,null,null,"118"]
[null,null,null,null,null,"119"]
[null,null,null,null,null,"120"]
[null,null,null,null,null,"121"]
[null,null,null,null,null,"122"]
[null,null,null,null,null,"123"]
[null,null,null,null,null,"124"]
[null,null,null,null,null,"125"]
[null,null,null,null,null,"126"]
[null,null,null,null,null,"127"]
[null,null,null,null,null,"128"]
[null,null,null,null,null,"129"]
[null,null,null,null,null,"130"]
[null,null,null,null,null,"131"]
[null,null,null,null,null,"132"]
[null,null,null,null,null,"133"]
[null,null,null,null,null,"134"]
[null,null,null,null,null,"135"]
[null,null,null,null,null,"136"]
[null,null,null,null,null,"137"]
[null,null,null,null,null,"138"]
[null,null,null,null,null,"139"]
[null,null,null,null,null,"140"]
[null,null,null,null,null,"141"]
[null,null,null,null,null,"142"]
[null,null,null,null,null,"143"]
[null,null,null,null,null,"144"]
[null,null,null,null,null,"146"]
[null,null,null,null,null,"147"]
[null,null,null,null,null,"148"]
[null,null,null,null,null,"149"]
[null,null,null,null,null,"150"]
[null,null,null,null,null,"151"]
[null,null,null,null,null,"152"]
[null,null,null,null,null,"153"]
[null,null,null,null,null,"154"]
[null,null,null,null,null,"155"]
[null,null,null,null,null,"156"]
[null,null,null,null,null,"157"]
[null,null,null,null,null,"158"]
[null,null,null,null,null,"159"]
[null,null,null,null,null,"160"]
[null,null,null,null,null,"161"]
[null,null,null,null,null,"162"]
[null,null,null,null,null,"163"]
[null,null,null,null,null,"164"]
[null,null,null,null,null,"165"]
[null,null,null,null,null,"166"]
[null,null,null,null,null,"167"]
[null,null,null,null,null,"168"]
[null,null,null,null,null,"169"]
[null,null,null,null,null,"170"]
[null,null,null,null,null,"171"]
[null,null,null,null,null,"172"]
[null,null,null,null,null,"173"]
[null,null,null,null,null,"174"]
[null,null,null,null,null,"175"]
[null,null,null,null,null,"176"]
[null,null,null,null,null,"177"]
[null,null,null,null,null,"178"]
[null,null,null,null,null,"179"]
[null,null,null,null,null,"180"]
[null,null,null,null,null,"181"]
[null,null,null,null,null,"182"]
[null,null,null,null,null,"183"]
[null,null,null,null,null,"184"]
[null,null,null,null,null,"185"]
[null,null,null,null,null,"186"]
[null,null,null,null,null,"187"]
[null,null,null,null,null,"188"]
[null,null,null,null,null,"189"]
[null,null,null,null,null,"190"]
[null,null,null,null,null,"191"]
[null,null,null,null,null,"192"]
[null,null,null,null,null,"193"]
[null,null,null,null,null,"194"]
[null,null,null,null,null,"195"]
[null,null,null,null,null,"196"]
[null,null,null,null,null,"197"]
[null,null,null,null,null,"198"]
[null,null,null,null,null,"199"]
[null,null,null,null,null,"200"]
[null,null,null,null,null,"201"]
[null,null,null,null,null,"202"]
[null,null,null,null,null,"203"]
[null,null,null,null,null,"204"]
[null,null,null,null,null,"205"]
[null,null,null,null,null,"206"]
[null,null,null,null,null,"207"]
[null,null,null,null,null,"208"]
[null,null,null,null,null,"209"]
[null,null,null,null,null,"210"]
[null,null,null,null,null,"211"]
[null,null,null,null,null,"212"]
[null,null,null,null,null,"213"]